Workbook

Sheet Accueil
B2: 1 | C2: FALSE | D2: 0 | F2: 1 | H2: Jeu de bourse
C3: 2
H4: Vous pouvez exercer vos talents de financier sur ce programme de simulation boursière.
H7: Vous devez créer un portefeuille de titres et le gérer pendant une année. Spéculation ou placement de père de famille ? | AH7: 0
AB10: 2
H11: Vous disposez de CHF 50'000.-. La partie se déroule en 12 mois pendant lesquels vous donnez autant d'ordres de bourse que vous le souhaitez.
H14: De 1 à 2 joueurs peuvent participer : le plus riche en fin d'année a gagné, bien sûr !
J18: Ecivez ici le nom des investisseurs
A19: Chaque mois le financier doit acheter et (ou) vendre des titres:
B20: 1) Choisir des titres parmi une offre de 4 actions, 1 obligation et 2 warrants. | J20: Joueur | K20: 1 | L20: Julius
B21: 2) Déterminer la quantité de titres à traiter en fonction des cours du jour et des liquidités à disposition. | J21: Joueur | K21: 2 | L21: Baer
B22: 3) Pour les baissiers, vendre à découvert dans les limitées de la garantie de CHF 50'000.-.
B23: 4) Emprunter en cas de "coup dur" sur une opération à terme.
B24: 5) Suivre l'évolution de son portefeuille sur les graphiques et définir des stratégies en fonction des tendances.
A27: Rôle des icônes dans le jeu : | E27: passer au mois suivant
H28: Consulter la comptabilité | K28: Nouvelle cote
B29: obtenir des renseignements | H29: et voir le portefeuille
F31: Voir les graphiques
D32: Valider | I32: Recommencer une nouvelle partie
F33: Cacher les graphiques
C35: Cliquer ici pour jouer ! | J35: Voir les commentaires
H36: Lire la presse | M36: Pour quitter le jeu
E40: Retour ici grâce à la fenêtre du bureau du patron !
L41: Version | M41: 3 - 30.05.2015

Sheet Bureau Direction
A1: SMI | B1: =VLOOKUP(8,Cote,AG2+2) -> 148.15 | E1: ="Portefeuille de "&VLOOKUP(AG3,Accueil!K20:M21,2) -> Portefeuille de Julius | W1: ="No "&AG3 -> No 1 | AF1: 32 | AG1: 33 | AH1: 34 | AI1: 35 | AJ1: 36 | AK1: 37 | AL1: 38 | AM1: 39 | AN1: 40 | AO1: 41 | AP1: 42 | AQ1: 43 | AR1: 44 | AS1: 45 | AT1: 46 | AU1: 47 | AV1: 48 | AW1: 49 | AX1: 50 | AY1: 51 | AZ1: 52 | BA1: 53 | BB1: 54 | BC1: 55 | BD1: 56 | BE1: 57 | BF1: 58 | BG1: 59 | BH1: 60 | BI1: 61 | BJ1: 62 | BK1: 63 | BL1: 64 | BM1: 65 | BN1: 66 | BO1: 67 | BP1: 68 | BQ1: 69 | BR1: 70 | BS1: 71 | BT1: 72 | BU1: 73 | BV1: 74 | BW1: 74 | BX1: 75 | BY1: 76 | BZ1: 77 | CA1: 78 | CB1: 79 | CC1: 80 | CD1: ="" -> 
D2: min. | I2: Inventraire | K2: Acheté | M2: Vendu | O2: Prix moyen | Q2: Valeur | T2: Situation | AF2: Mois | AG2: 1 | AK2: choix cote B/D | AL2: =IF(AJ4=4,2,IF(AJ29="put",2,1)) -> 1 | AM2: =IF(AJ4=4,2,IF(AJ29="put",2,1)) -> 1 | AN2: Constantes mensuelles. Nom : Datamens | CD2: ="" -> 
D3: =ROUNDUP((1000/R13),0) -> 63 | E3: =AL11 -> Abeco | I3: =IF($AG$3=1,BB23,BB35) -> 0 | K3: =IF($AG$3=1,BC23,BC35) -> 0 | M3: =IF($AG$3=1,BD23,BD35) -> 0 | O3: =IF($AG$3=1,IF(I3=0,"",BT23),IF(I3=0,"",BT35)) ->  | Q3: =IF($AG$3=1,BU23,BU35) -> 0 | T3: =IF($AG$3=1,CA23,CA35) -> 0 | AF3: Joueur | AG3: 1 | AH3: =IF(AG3=1,"A actif","B actif") -> A actif | AI3: Voir com: | AJ3: 0 | AK3: Coef. Cote | AL3: =IF(AG4<6,1,IF(AJ4=2,0.75,1)) -> 1 | AO3: 1 | AP3: 2 | AQ3: 3 | AR3: 4 | AS3: 5 | AT3: 6 | AU3: 7 | AV3: 8 | AW3: 9 | AX3: 10 | AY3: 11 | AZ3: 12 | BA3: 13 | BB3: 14 | BG3: Pour le graphique : variation en % | BW3: Tableau pour information. En vert le warrant serait exercé en mode américain | CK3: 31 déc. | CM3: strick
D4: =ROUNDUP((1000/R14),0) -> 1 | E4: Bell & Cie | I4: =IF($AG$3=1,BB24,BB36) -> 0 | K4: =IF($AG$3=1,BC24,BC36) -> 0 | M4: =IF($AG$3=1,BD24,BD36) -> 0 | O4: =IF($AG$3=1,IF(I4=0,"",BT24),IF(I4=0,"",BT36)) ->  | Q4: =IF($AG$3=1,BU24,BU36) -> 0 | T4: =IF($AG$3=1,CA24,CA36) -> 0 | W4: =IF(AG2<13,"Résultat virtuel des titres","Résultat final des titres") -> Résultat virtuel des titres | X4: =HLOOKUP(AG2,Datamens,2) -> janvier | AA4: =IF(X5=31,"Fin de partie","") ->  | AC4: =IF($AG$3=1,IF(AO$30=1,"o",""),IF(AO$42=1,"o","")) ->  | AF4: Titre choisi | AG4: =AH4-1 -> 0 | AH4: 1 | AJ4: =IF(AG6=FALSE,AG5,AG5+2) -> 1 | AK4: légende : | AL4: achat | AM4: 1 | AO4: janvier | AP4: février | AQ4: mars | AR4: avril | AS4: mai | AT4: juin | AU4: juillet | AV4: août | AW4: septembre | AX4: octobre | AY4: novembre | AZ4: décembre | BA4: décembre | BB4: FIN | BH4: déc | BI4: jan | BJ4: fév | BK4: mars | BL4: avril | BM4: mai | BN4: juin | BO4: juillet | BP4: août | BQ4: sep | BR4: oct | BS4: nov | BT4: déc | BW4: Bell | BX4: cours | BY4: =AN$12 -> 2330 | BZ4: 2354 | CA4: 2401 | CB4: 2378 | CC4: 2615 | CD4: 2544 | CE4: 2568 | CF4: 2734 | CG4: 2758 | CH4: 2710 | CI4: 2568 | CJ4: 2710 | CK4: 2829 | CM4: call
D5: =ROUNDUP((1000/R15),0) -> 7 | E5: Comon | I5: 0 | K5: 0 | M5: 0 | Q5: =IF($AG$3=1,BU25,BU37) -> 0 | T5: 0 | X5: =HLOOKUP(AG2,Datamens,3) -> 1 | AC5: =IF($AG$3=1,IF(AP$30=1,"o",""),IF(AP$42=1,"o","")) ->  | AF5: Achat/Vente | AG5: 1 | AH5: Put: | AI5: Call : | AJ5: Pr cote : | AK5: Ecran | AL5: vente | AM5: 2 | AO5: 1 | AP5: 1 | AQ5: 1 | AR5: 1 | AS5: 1 | AT5: 1 | AU5: 1 | AV5: 1 | AW5: 1 | AX5: 1 | AY5: 1 | AZ5: 1 | BA5: 31 | BG5: Abeco | BH5: =AN11*100/AN11 -> 100 | BI5: =IF(BH$13=0,BH5,AO11*100/$AN11) -> 100 | BJ5: =IF(BI$13=0,BI5,AP11*100/$AN11) -> 100 | BK5: 100 | BL5: 100 | BM5: 100 | BN5: 100 | BO5: 100 | BP5: 100 | BQ5: 100 | BR5: 100 | BS5: 100 | BT5: 100 | BX5: équart | BY5: =BY4-$CM$5 -> -270 | BZ5: =BZ4-$CM$5 -> -246 | CA5: -199 | CB5: -222 | CC5: 15 | CD5: -56 | CE5: -32 | CF5: 134 | CG5: 158 | CH5: 110 | CI5: -32 | CJ5: 110 | CK5: 229 | CM5: =(ROUNDUP(BB12/100,0)*100) -> 2600
D6: =ROUNDUP((1000/R16),0) -> 2 | E6: Divogan | I6: 0 | K6: 0 | M6: 0 | Q6: =IF($AG$3=1,BU26,BU38) -> 0 | T6: 0 | AC6: =IF($AG$3=1,IF(AQ$30=1,"o",""),IF(AQ$42=1,"o","")) ->  | AF6: Option | AG6: FALSE | AH6: 0 | AI6: =IF(AG6=FALSE,0,IF(AG5=1,1,0)) -> 0 | AJ6: =IF(AG4<6,AH6,IF(AJ4=4,1,AH6)) -> 0 | AK6: =IF(AI6=1,"call","put") -> put | AL6: Call | AM6: 3 | BG6: Bell & Cie | BH6: =AN12*100/AN12 -> 100 | BI6: =IF(BH$13=0,BH6,AO12*100/$AN12) -> 101.0300429 | BJ6: =IF(BI$13=0,BI6,AP12*100/$AN12) -> 101.0300429 | BK6: 101.0300429 | BL6: 101.0300429 | BM6: 101.0300429 | BN6: 101.0300429 | BO6: 101.0300429 | BP6: 101.0300429 | BQ6: 101.0300429 | BR6: 101.0300429 | BS6: 101.0300429 | BT6: 101.0300429 | BW6: Divo | BX6: cours | BY6: =AN$14 -> 580 | BZ6: 591 | CA6: 569 | CB6: 597 | CC6: 603 | CD6: 574 | CE6: 540 | CF6: 523 | CG6: 574 | CH6: 540 | CI6: 529 | CJ6: 534 | CK6: 529 | CM6: =(ROUNDUP(BB14/100,0)*100)+20 -> 620
D7: =ROUNDUP((1000/R17),0) -> 1 | E7: Oblig. Emotion | I7: 0 | K7: 0 | M7: 0 | Q7: =IF($AG$3=1,BU27,BU39) -> 0 | T7: 0 | W7: =SUM(T3:T7) -> 0 | AC7: =IF($AG$3=1,IF(AR$30=1,"o",""),IF(AR$42=1,"o","")) ->  | AF7: Graph1 | AG7: 0 ou 1 | AH7: 0 | AI7: Travaux | AJ7: 0 | AL7: Put | AM7: 4 | AN7: COTE | AO7: Nom : Cote | BG7: Comon | BH7: =AN13*100/AN13 -> 100 | BI7: =IF(BH$13=0,BH7,AO13*100/$AN13) -> 98.75 | BJ7: 98.75 | BK7: 98.75 | BL7: 98.75 | BM7: 98.75 | BN7: 98.75 | BO7: 98.75 | BP7: 98.75 | BQ7: 98.75 | BR7: 98.75 | BS7: 98.75 | BT7: 98.75 | BX7: équart | BY7: =BY6-$CM$6 -> -40 | BZ7: =BZ6-$CM$6 -> -29 | CA7: -51 | CB7: -23 | CC7: -17 | CD7: -46 | CE7: -80 | CF7: -97 | CG7: -46 | CH7: -80 | CI7: -91 | CJ7: -86 | CK7: -91
D8: =IF(R18=0,"",ROUNDUP((1000/R18),0)) -> 15 | E8: Warrant BELL | I8: 0 | K8: 0 | M8: 0 | Q8: =IF(AG2=13,0,IF(I8=0,0,I8*O8)) -> 0 | T8: 0 | W8: =IF(T8<0,"- prime","") ->  | X8: =INT(BB18/20) -> 41 | AC8: =IF($AG$3=1,IF(AS$30=1,"o",""),IF(AS$42=1,"o","")) ->  | AF8: Graph2 | AG8: 0 | AH8: 0 | AI8: Champagne | AJ8: 0 | AM8: 1 | AN8: 2 | AO8: 3 | AP8: 4 | AQ8: 5 | AR8: 6 | AS8: 7 | AT8: 8 | AU8: 9 | AV8: 10 | AW8: 11 | AX8: 12 | AY8: 13 | AZ8: 14 | BA8: 15 | BB8: 16 | BC8: 17 | BG8: Divogan | BH8: =AN14*100/AN14 -> 100 | BI8: =IF(BH$13=0,BH8,AO14*100/$AN14) -> 101.8965517 | BJ8: 101.8965517 | BK8: 101.8965517 | BL8: 101.8965517 | BM8: 101.8965517 | BN8: 101.8965517 | BO8: 101.8965517 | BP8: 101.8965517 | BQ8: 101.8965517 | BR8: 101.8965517 | BS8: 101.8965517 | BT8: 101.8965517 | CE8: ="" -> 
D9: =IF(R19=0,"",ROUNDUP((1000/R19),0)) -> 28 | E9: Warrant DIVO | I9: 0 | K9: 0 | M9: 0 | Q9: =IF(AG2=13,0,IF(I9=0,0,I9*O9)) -> 0 | T9: 0 | W9: =IF(T9<0,"- prime","") ->  | X9: =IF(Y10=0,"Résultat de la partie :",IF(Y10>0,"Bénéfice","Perte")) -> Résultat de la partie : | AC9: =IF($AG$3=1,IF(AT$30=1,"o",""),IF(AT$42=1,"o","")) ->  | AF9: Emprunt | AG9: Jou. A | AH9: 0 | AI9: Jou. B | AJ9: 0 | AL9: Titres | AN9: déc | AO9: jan | AP9: fév | AQ9: mars | AR9: avril | AS9: mai | AT9: juin | AU9: juillet | AV9: août | AW9: sep | AX9: oct | AY9: nov | AZ9: déc | BA9: (nov+déc)/2 | BB9: Moy. | BG9: Oblig. Emotion | BH9: 100 | BI9: =IF(BH$13=0,BH9,AO15*100/$AN15) -> 101 | BJ9: 101 | BK9: 101 | BL9: 101 | BM9: 101 | BN9: 101 | BO9: 101 | BP9: 101 | BQ9: 101 | BR9: 101 | BS9: 101 | BT9: 101 | BW9: Bell | BX9: cours | BY9: =AN$12 -> 2330 | BZ9: 2354 | CA9: 2401 | CB9: 2378 | CC9: 2615 | CD9: 2544 | CE9: 2568 | CF9: 2734 | CG9: 2758 | CH9: 2710 | CI9: 2568 | CJ9: 2710 | CK9: 2829 | CM9: put
Q10: =SUM(Q3:S9) -> 0 | T10: =SUM(T3:V9) -> 0 | W10: =J13 -> 0 | Y10: =SUM(T10:X10) -> 0 | AC10: =IF($AG$3=1,IF(AU$30=1,"o",""),IF(AU$42=1,"o","")) ->  | AF10: Futur | AG10: =IF(AG3=1,IF(AG5=1,0,IF(H20>VLOOKUP(AG4,Achat_vente_A,15),1,0)), IF(AG5=1,0,IF(H20>VLOOKUP(AG4,Achat_Vente_B,15),1,0))) -> 0 | AH10: Test/inv | AI10: =SUMIF(I3:I7,"<0") -> 0 | AJ10: =IF(AI10<0,1,0) -> 0 | AL10: T i t r e s | AM10: 0 | AN10: 0 | AO10: 0 | AP10: 0 | AQ10: 0 | AR10: 0 | AS10: 0 | AT10: 0 | AU10: 0 | AV10: 0 | AW10: 0 | AX10: 0 | AY10: 0 | AZ10: 0 | BC10: 0 | BG10: SMI | BH10: 100 | BI10: =AVERAGE(BI5:BI9) -> 100.5353189 | BJ10: =AVERAGE(BJ5:BJ9) -> 100.5353189 | BK10: 100.5353189 | BL10: 100.5353189 | BM10: 100.5353189 | BN10: 100.5353189 | BO10: 100.5353189 | BP10: 100.5353189 | BQ10: 100.5353189 | BR10: 100.5353189 | BS10: 100.5353189 | BT10: 100.5353189 | BX10: équart | BY10: =$CM$10-BY9 -> 70 | BZ10: =$CM$10-BZ9 -> 46 | CA10: -1 | CB10: 22 | CC10: -215 | CD10: -144 | CE10: -168 | CF10: -334 | CG10: -358 | CH10: -310 | CI10: -168 | CJ10: -310 | CK10: -429 | CM10: =(ROUNDUP(BB12/100,0)*100)-200 -> 2400
I11: Ancien solde | J11: =IF($AG$3=1,N22-BC48,N22-BC58) -> 50000 | N11: =IF(Q11=0,"","En compte :") ->  | Q11: =ABS(SUMIF(Q3:Q7,"<0")) -> 0 | W11: Actifs : | Y11: =Q10+N22-N25 -> 50000 | AC11: =IF($AG$3=1,IF(AV$30=1,"o",""),IF(AV$42=1,"o","")) ->  | AF11: Cycle L(I) | AG11: 4 | AH11: =IF(AG11=1," =", IF(AG11=2," -",IF(AG11=3," +"," +-"))) -> +- | AK11: 1 | AL11: Abeco | AM11: 1 | AN11: 16 | AO11: 16 | AP11: 16 | AQ11: 15 | AR11: 19 | AS11: 20 | AT11: 18 | AU11: 15 | AV11: 16 | AW11: 15 | AX11: 20 | AY11: 20 | AZ11: 18 | BA11: =(AY11+AZ11)/2 -> 19 | BB11: =SUM(AN11:AZ11)/13 -> 17.23076923 | BC11: -1 | BG11: Option ABEC | BH11: 0 | BW11: Divo | BX11: cours | BY11: =AN$14 -> 580 | BZ11: 591 | CA11: 569 | CB11: 597 | CC11: 603 | CD11: 574 | CE11: 540 | CF11: 523 | CG11: 574 | CH11: 540 | CI11: 529 | CJ11: 534 | CK11: 529 | CM11: =(ROUNDUP(BB14/100,0)*100)-20 -> 580
D12: =INT(H20) -> 0 | F12: x | G12: =VLOOKUP(AG4,Cote,AG2+2)*AL3 -> 0 | I12: = | J12: =D12*G12 -> 0 | N12: COTE | R12: Cours | T12: Précéd. | V12: dif. en % | AC12: =IF($AG$3=1,IF(AW$30=1,"o",""),IF(AW$42=1,"o","")) ->  | AG12: 1 | AH12: =IF(AG12=1," =", IF(AG12=2," -",IF(AG12=3," +"," +-"))) -> = | AK12: 2 | AL12: Bell & Cie | AM12: 2 | AN12: 2330 | AO12: 2354 | AP12: 2401 | AQ12: 2378 | AR12: 2615 | AS12: 2544 | AT12: 2568 | AU12: 2734 | AV12: 2758 | AW12: 2710 | AX12: 2568 | AY12: 2710 | AZ12: 2829 | BA12: =(AY12+AZ12)/2 -> 2769.5 | BB12: =SUM(AN12:AZ12)/13 -> 2576.846154 | BC12: 0 | BG12: Option DIVO | BH12: 0 | BX12: équart | BY12: =$CM$11-BY11 -> 0 | BZ12: =$CM$11-BZ11 -> -11 | CA12: 11 | CB12: -17 | CC12: -23 | CD12: 6 | CE12: 40 | CF12: 57 | CG12: 6 | CH12: 40 | CI12: 51 | CJ12: 46 | CK12: 51
D13: Dividendes et int. cumulés | J13: =IF($AG$3=1,BC48,BC58) -> 0 | M13: 1 | N13: =AL11 -> Abeco | R13: =VLOOKUP(1,Cote,$AG$2+2) -> 16 | T13: =VLOOKUP(1,Cote,$AG$2+1) -> 16 | V13: =(R13-T13)*100/T13 -> 0 | X13: =AH11 -> +- | AC13: =IF($AG$3=1,IF(AX$30=1,"o",""),IF(AX$42=1,"o","")) ->  | AG13: 1 | AH13: =IF(AG13=1," =", IF(AG13=2," -",IF(AG13=3," +"," +-"))) -> = | AI13: Be 1=put | AJ13: Di 1=put | AK13: 3 | AL13: Comon | AM13: 3 | AN13: 160 | AO13: 158 | AP13: 164 | AQ13: 163 | AR13: 179 | AS13: 172 | AT13: 172 | AU13: 156 | AV13: 153 | AW13: 195 | AX13: 184 | AY13: 156 | AZ13: 172 | BA13: =(AY13+AZ13)/2 -> 164 | BB13: =SUM(AN13:AZ13)/13 -> 168 | BC13: 0 | BG13: Mois OK | BH13: 1 | BI13: =AO30+AO42 -> 0 | BJ13: =AP30+AP42 -> 0 | BK13: 0 | BL13: 0 | BM13: 0 | BN13: 0 | BO13: 0 | BP13: 0 | BQ13: 0 | BR13: 0 | BS13: 0 | BT13: 0 | CD13: ="" -> 
I14: Prochain solde | J14: =IF(AG5=2,J11+J12+J13,J11-J12+J13) -> 50000 | M14: 2 | N14: Bell & Cie | R14: =VLOOKUP(2,Cote,$AG$2+2) -> 2354 | T14: =VLOOKUP(2,Cote,$AG$2+1) -> 2330 | V14: 1.030042918 | X14: =AH12 -> = | AC14: =IF($AG$3=1,IF(AY$30=1,"o",""),IF(AY$42=1,"o","")) ->  | AG14: 2 | AH14: =IF(AG14=1," =", IF(AG14=2," -",IF(AG14=3," +"," +-"))) -> - | AI14: 0 | AJ14: 0 | AK14: 4 | AL14: Divogan | AM14: 4 | AN14: 580 | AO14: 591 | AP14: 569 | AQ14: 597 | AR14: 603 | AS14: 574 | AT14: 540 | AU14: 523 | AV14: 574 | AW14: 540 | AX14: 529 | AY14: 534 | AZ14: 529 | BA14: =(AY14+AZ14)/2 -> 531.5 | BB14: =SUM(AN14:AZ14)/13 -> 560.2307692 | BC14: 0 | BD14: Strick pour joueur | BF14: Vente de warrent | CD14: ="" -> 
M15: 3 | N15: Comon | R15: =VLOOKUP(3,Cote,$AG$2+2) -> 158 | T15: =VLOOKUP(3,Cote,$AG$2+1) -> 160 | V15: -1.25 | X15: =AH13 -> = | AC15: =IF($AG$3=1,IF(AZ$30=1,"o",""),IF(AZ$42=1,"o","")) ->  | AH15: A | AI15: 0 | AJ15: 0 | AL15: Oblig. Emotion | AM15: 5 | AN15: =100*50 -> 5000 | AO15: =101*50 -> 5050 | AP15: =101*50 -> 5050 | AQ15: =102*50 -> 5100 | AR15: =102*50 -> 5100 | AS15: =103*50 -> 5150 | AT15: 5150 | AU15: 5150 | AV15: 5150 | AW15: 5150 | AX15: 5150 | AY15: =102*50 -> 5100 | AZ15: =102*50 -> 5100 | BA15: =(AY15+AZ15)/2 -> 5100 | BB15: =SUM(AN15:AZ15)/13 -> 5107.692308 | BC15: 0 | BD15: A | BE15: B | BG15: Call | BI15: 12 | BJ15: 1 | BK15: 2 | BL15: 3 | BM15: 4 | BN15: 5 | BO15: 6 | BP15: 7 | BQ15: 8 | BR15: 9 | BS15: 10 | BT15: 11 | BU15: 12 | BX15: Put | BY15: 12 | BZ15: 1 | CA15: 2 | CB15: 3 | CC15: 4 | CD15: 5 | CE15: 6 | CF15: 7 | CG15: 8 | CH15: 9 | CI15: 10 | CJ15: 11 | CK15: 12
A16: Charges et produits du mois | M16: 4 | N16: Divogan | R16: =VLOOKUP(4,Cote,$AG$2+2) -> 591 | T16: =VLOOKUP(4,Cote,$AG$2+1) -> 580 | V16: 1.896551724 | X16: =AH14 -> - | AH16: B | AI16: Bell | AJ16: Divo | AL16: Warrant BELL | AM16: 6 | AN16: =IF($AL$2=2,BY16,BI16) -> 67.2 | AO16: =IF($AL$2=2,BZ16,BJ16) -> 71.4 | AP16: 80.2 | AQ16: 75 | AR16: 16.2 | AS16: 107 | AT16: 111.2 | AU16: 140.7 | AV16: 164.32 | AW16: 113.3 | AX16: 108.8 | AY16: 111.1 | AZ16: 229 | BB16: strike : | BC16: =IF(AJ6=1,(ROUNDUP(BB12/100,0)*100)-200,(ROUNDUP(BB12/100,0)*100)) -> 2600 | BD16: =IF(AI14=1,(ROUNDUP(BB12/100,0)*100)-200,(ROUNDUP(BB12/100,0)*100)) -> 2600 | BE16: =IF(AI15=1,(ROUNDUP(BB12/100,0)*100)-200,(ROUNDUP(BB12/100,0)*100)) -> 2600 | BF16: =IF(AG6=TRUE,BC16,IF(AG3=1,BD16,BE16)) -> 2600 | BG16: Warrant BELL | BH16: 6 | BI16: =IF(AN12-$BC$16<10, IF( ( (60*AN19)+ ( (AN12-$AN$12 )/5 ) )<10,10, ( (60*AN19)+ ( (AN12-$AN$12 )/5 ) )),(AN12-$BC$16)*AN19) -> 67.2 | BJ16: =IF(AO12-$BC$16<10, IF( ( (60*AO19)+ ( (AO12-$AN$12 )/5 ) )<10,10, ( (60*AO19)+ ( (AO12-$AN$12 )/5 ) )),(AO12-$BC$16)*AO19) -> 71.4 | BK16: 80.2 | BL16: 75 | BM16: 16.2 | BN16: 107 | BO16: 111.2 | BP16: 140.7 | BQ16: 164.32 | BR16: 113.3 | BS16: 108.8 | BT16: 111.1 | BU16: 229 | BW16: Warrant BELL | BX16: 6 | BY16: =IF($BF$16-AN12<10, IF( ( (60*AN19)+ ( ($AN$12-AN12 )/5 ) )<10,10, ( (60*AN19)+ ( ($AN$12-AN12 )/5 ) )),($BF$16-AN12)*AN19) -> 302.4 | BZ16: =IF($BF$16-AO12<10, IF( ( (60*AO19)+ ( ($AN$12-AO12 )/5 ) )<10,10, ( (60*AO19)+ ( ($AN$12-AO12 )/5 ) )),($BF$16-AO12)*AO19) -> 273.06 | CA16: 218.9 | CB16: 241.98 | CC16: 10 | CD16: 59.92 | CE16: 33.92 | CF16: 10 | CG16: 10 | CH16: 10 | CI16: 32.64 | CJ16: 10 | CK16: 10
A17: =IF(B17=0,"",IF(AG2=13,"Résultat warrants","Dividendes du mois")) ->  | B17: =IF($AG$3=1,HLOOKUP($AG$2,Dividende_1,7),HLOOKUP($AG$2,Dividende_2,7)) -> 0 | M17: 5 | N17: Oblig. Emotion | R17: =VLOOKUP(5,Cote,$AG$2+2) -> 5050 | T17: =VLOOKUP(5,Cote,$AG$2+1) -> 5000 | V17: 1 | X17: = | AF17: Affichage | AH17: Conflit | AI17: =IF(X18="",0,IF(X18=AK6,0,1)) -> 0 | AJ17: =IF(X19="",0,IF(X19=AK6,0,1)) -> 0 | AL17: Warrant DIVO | AM17: 7 | AN17: =IF($AM$2=2,BY17,BI17) -> 33.6 | AO17: =IF($AM$2=2,BZ17,BJ17) -> 36.96666667 | AP17: 29.33333333 | AQ17: 38.36666667 | AR17: 40.06666667 | AS17: 30.1 | AT17: 18.46666667 | AU17: 12.5 | AV17: 29.2 | AW17: 17.56666667 | AX17: 13.6 | AY17: 14.96666667 | AZ17: 13 | BA17: 0 | BB17: strike : | BC17: =IF(AJ6=1,(ROUNDUP(BB14/100,0)*100)-20,(ROUNDUP(BB14/100,0)*100)+20) -> 620 | BD17: =IF(AJ14=1,(ROUNDUP(BB14/100,0)*100)-20,(ROUNDUP(BB14/100,0)*100)+20) -> 620 | BE17: =IF(AJ15=1,(ROUNDUP(BB14/100,0)*100)-20,(ROUNDUP(BB14/100,0)*100)+20) -> 620 | BF17: =IF(AG6=TRUE,BC17,IF(AG3=1,BD17,BE17)) -> 620 | BG17: Warrant DIVO | BH17: 7 | BI17: =IF(AN14-$BC$17<10, IF( ( (30*AN19)+ ( (AN14-$AN$14 )/3 ) )<10,10, ( (30*AN19)+ ( (AN14-$AN$14 )/3 ) )),(AN14-$BC$17)*AN19) -> 33.6 | BJ17: =IF(AO14-$BC$17<10, IF( ( (30*AO19)+ ( (AO14-$AN$14 )/3 ) )<10,10, ( (30*AO19)+ ( (AO14-$AN$14 )/3 ) )),(AO14-$BC$17)*AO19) -> 36.96666667 | BK17: 29.33333333 | BL17: 38.36666667 | BM17: 40.06666667 | BN17: 30.1 | BO17: 18.46666667 | BP17: 12.5 | BQ17: 29.2 | BR17: 17.56666667 | BS17: 13.6 | BT17: 14.96666667 | BU17: 13 | BW17: Warrant DIVO | BX17: 7 | BY17: =IF($BF$17-AN14<10, IF( ( (30*AN19)+ ( ($AN$14-AN14 )/2 ) )<10,10, ( (30*AN19)+ ( ($AN$14-AN14 )/2 ) )),($BF$17-AN14)*AN19) -> 44.8 | BZ17: =IF($BF$17-AO14<10, IF( ( (30*AO19)+ ( ($AN$14-AO14 )/2 ) )<10,10, ( (30*AO19)+ ( ($AN$14-AO14 )/2 ) )),($BF$17-AO14)*AO19) -> 32.19 | CA17: 56.1 | CB17: 25.07 | CC17: 18.36 | CD17: 49.22 | CE17: 84.8 | CF17: 101.85 | CG17: 47.84 | CH17: 82.4 | CI17: 92.82 | CJ17: 86.86 | CK17: 91
A18: =IF(B18=0,"",IF(AG2=13,"Int. des obligations","Intérêts et int. cour.")) ->  | B18: =IF($AG$3=1,HLOOKUP($AG$2,Dividende,8),HLOOKUP($AG$2,Dividende_2,8)) -> 0 | H18: =IF(AG6=FALSE,"",VLOOKUP(3,AF30:AG32,2)) ->  | M18: 6 | N18: Warrant BELL | R18: =VLOOKUP(6,Cote,$AG$2+2)*AL3 -> 71.4 | T18: =VLOOKUP(6,Cote,$AG$2+1)*AL3 -> 67.2 | V18: 6.25 | X18: =IF(AG3=1,IF(Q8=0,"",IF(AI14=1,"put","call")),IF(Q8=0,"",IF(AI15=1,"put","call"))) ->  | AF18: Ligne 1 | AG18: 2 | AL18: Moy. pond | AM18: 8 | AN18: =((AN11*10)+(AN12/10)+(AN13/2)+(AN14/5))/4 -> 147.25 | AO18: =((AO11*10)+(AO12/10)+(AO13/2)+(AO14/5))/4 -> 148.15 | AP18: 148.975 | AQ18: 147.175 | AR18: 165.4 | AS18: 163.8 | AT18: 157.7 | AU18: 151.5 | AV18: 156.775 | AW18: 156.625 | AX18: 163.65 | AY18: 163.95 | AZ18: 163.675 | BA18: 163.8125 | BB18: =AVERAGE(BB11:BB14) -> 830.5769231 | BC18: =BB18/20 -> 41.52884615
A19: =IF(B19=0,"",IF(AG2=13,"Int. emprunt","Frais bancaires")) ->  | B19: =IF($AG$3=1,HLOOKUP($AG$2,Dividende,9),HLOOKUP($AG$2,Dividende_2,9)) -> 0 | F19: =IF(AG6=FALSE,"","Strike") ->  | I19: =IF(AG6=TRUE,VLOOKUP(AG4,Cote,17),"") ->  | L19: Enter | M19: 7 | N19: Warrant DIVO | R19: =VLOOKUP(7,Cote,$AG$2+2)*AL3 -> 36.96666667 | T19: =VLOOKUP(7,Cote,$AG$2+1)*AL3 -> 33.6 | V19: 10.01984127 | X19: =IF(AG3=1,IF(Q9=0,"",IF(AJ14=1,"put","call")),IF(Q9=0,"",IF(AJ15=1,"put","call"))) ->  | AF19: Ligne 2 | AG19: 2 | AL19: prime temporelle | AN19: 1.12 | AO19: 1.11 | AP19: 1.1 | AQ19: 1.09 | AR19: 1.08 | AS19: 1.07 | AT19: 1.06 | AU19: 1.05 | AV19: 1.04 | AW19: 1.03 | AX19: 1.02 | AY19: 1.01 | AZ19: 1 | BA19: 1
A20: Total du mois | B20: =SUM(B17:B19) -> 0 | E20: Quantité : | AF20: Ligne 3 | AG20: 2 | AL20: Achats/Ventes joueur | AM20: A | AO20: Nombre de titres achetés ou vendus. Nom : Achat_vente_A | BF20: Valeur_A | CB20: Résultat provisoire | CC20: OP. à terme en cours | CD20: ="" -> 
AF21: Ligne 4 | AG21: 2 | AI21: calcul tuyau | AO21: jan | AP21: fév | AQ21: mars | AR21: avril | AS21: mai | AT21: juin | AU21: juillet | AV21: août | AW21: sep | AX21: oct | AY21: nov | AZ21: déc | BB21: Total | BG21: 1 | BH21: 2 | BI21: 3 | BJ21: 4 | BK21: 5 | BL21: 6 | BM21: 7 | BN21: 8 | BO21: 9 | BP21: 10 | BQ21: 11 | BR21: 12 | BT21: Dép/tot | BU21: cours*tot | CD21: ="" -> 
A22: 100 | N22: =IF(AG3=1,50000+N25+BS30+BC48-CB27-Q11,50000+N25+BS42+BC58-CB39-Q11) -> 50000 | AF22: Ligne 5 | AG22: 3 | AH22: A | AI22: =VLOOKUP(AI25,Cote,$AG$2+2) -> 0 | AJ22: =VLOOKUP(AI25,Cote,$AG$2+3) -> 0 | AL22: Titre | AN22: 0 | BA22: 0 | BB22: 0 | BC22: achats | BD22: ventes | BG22: jan | BH22: fév | BI22: mars | BJ22: avril | BK22: mai | BL22: juin | BM22: juillet | BN22: août | BO22: sep | BP22: oct | BQ22: nov | BR22: déc | BS22: Dépense | BT22: Prix moy | BU22: Inv. Final | BV22: achats | BW22: ventes | BY22: Ventes | BZ22: PRAMV | CA22: BB | CD22: ="" -> 
A23: zoom | AG23: 2 | AH23: B | AI23: =VLOOKUP(AI26,Cote,$AG$2+2) -> 0 | AJ23: =VLOOKUP(AI26,Cote,$AG$2+3) -> 0 | AL23: Abeco | AN23: 1 | BB23: =SUM(AO23:AZ23) -> 0 | BC23: =SUMIF(AO23:AZ23,">0") -> 0 | BD23: =BC23-BB23 -> 0 | BF23: 1 | BG23: =AO23*AO11*-1 -> 0 | BH23: 0 | BI23: 0 | BJ23: 0 | BK23: 0 | BL23: 0 | BM23: 0 | BN23: 0 | BO23: 0 | BP23: 0 | BQ23: 0 | BR23: 0 | BS23: =SUM(BG23:BR23) -> 0 | BT23: =IF(BB23=0,0,BS23/BB23*-1) -> 0 | BU23: =VLOOKUP(BF23,Cote,$AG$2+2)*BB23 -> 0 | BV23: =SUMIF(BG23:BR23,"<0") -> 0 | BW23: =BS23-BV23 -> 0 | BY23: =BW23 -> 0 | BZ23: =(BV23*-1)-BU23 -> 0 | CA23: =IF(BU23<0,0,BY23-BZ23) -> 0 | CB23: =IF(CC23="oui",BY23-BZ23,0) -> 0 | CC23: =IF(BB23<0,"oui","non") -> non | CD23: ="" -> 
A24: Réglage | N24: Emprunt à 10 % | AH24: nb | AI24: titre | AJ24: tuyau | AL24: Bell & Cie | AN24: 2 | BA24: 0 | BB24: =SUM(AO24:AZ24) -> 0 | BC24: =SUMIF(AO24:AZ24,">0") -> 0 | BD24: =BC24-BB24 -> 0 | BF24: 2 | BG24: 0 | BH24: 0 | BI24: 0 | BJ24: 0 | BK24: 0 | BL24: 0 | BM24: 0 | BN24: 0 | BO24: 0 | BP24: 0 | BQ24: 0 | BR24: 0 | BS24: =SUM(BG24:BR24) -> 0 | BT24: =IF(BB24=0,0,BS24/BB24*-1) -> 0 | BU24: =VLOOKUP(BF24,Cote,$AG$2+2)*BB24 -> 0 | BV24: =SUMIF(BG24:BR24,"<0") -> 0 | BW24: =BS24-BV24 -> 0 | BY24: =BW24 -> 0 | BZ24: =(BV24*-1)-BU24 -> 0 | CA24: =IF(BU24<0,0,BY24-BZ24) -> 0 | CB24: =IF(CC24="oui",BY24-BZ24,0) -> 0 | CC24: =IF(BB24<0,"oui","non") -> non | CD24: ="" -> 
N25: =IF(AG3,IF(BC51=0,0,BC51),IF(BC61=0,0,BC61)) -> 0 | Z25: =IF(AG3=1,IF(AI25=0,"",VLOOKUP(AI25,AK11:AL14,2)),IF(AI26=0,"",VLOOKUP(AI26,AK11:AL14,2))) ->  | AA25: =IF(AG3=1,IF(AI25=0,"",AJ25),IF(AI26=0,"",AJ26)) ->  | AF25: Tuyau | AG25: joueur A | AH25: 0 | AI25: 0 | AJ25: =IF(AJ22-AI22>0,"+","-") -> - | AL25: Comon | AN25: 3 | BA25: 0 | BB25: 0 | BC25: 0 | BD25: 0 | BF25: 3 | BG25: 0 | BH25: 0 | BI25: 0 | BJ25: 0 | BK25: 0 | BL25: 0 | BM25: 0 | BN25: 0 | BO25: 0 | BP25: 0 | BQ25: 0 | BR25: 0 | BS25: 0 | BT25: 0 | BU25: =VLOOKUP(BF25,Cote,$AG$2+2)*BB25 -> 0 | BV25: 0 | BW25: 0 | BY25: 0 | BZ25: 0 | CA25: 0 | CB25: =IF(CC25="oui",BY25-BZ25,0) -> 0 | CC25: =IF(BB25<0,"oui","non") -> non | CD25: ="" -> 
K26: Smak | Z26: =IF(AG4>5,"Opération sur dérivés",IF(AG10=1," Achat à terme "&VLOOKUP(AG33,AF30:AG32,2),"")) ->  | AG26: joueur B | AH26: 0 | AI26: 0 | AJ26: =IF(AJ23-AI23>0,"+","-") -> - | AL26: Divogan | AN26: 4 | BA26: 0 | BB26: 0 | BC26: 0 | BD26: 0 | BF26: 4 | BG26: 0 | BH26: 0 | BI26: 0 | BJ26: 0 | BK26: 0 | BL26: 0 | BM26: 0 | BN26: 0 | BO26: 0 | BP26: 0 | BQ26: 0 | BR26: 0 | BS26: 0 | BT26: 0 | BU26: =VLOOKUP(BF26,Cote,$AG$2+2)*BB26 -> 0 | BV26: 0 | BW26: 0 | BY26: 0 | BZ26: 0 | CA26: 0 | CB26: =IF(CC26="oui",BY26-BZ26,0) -> 0 | CC26: =IF(BB26<0,"oui","non") -> non | CD26: ="" -> 
Z27: =IF(AG2>12,"",IF(AH4=1,"Choisissez un titre !", IF(J14<0,IF(AG5=1,"Pas possible !",""),""))) -> Choisissez un titre ! | AF27: Le titre sélectionné est call ou put | AJ27: =IF(AG4=6,X18,X19) ->  | AL27: Oblig. Emotion | AN27: 5 | BB27: 0 | BC27: 0 | BD27: 0 | BF27: 5 | BG27: 0 | BH27: 0 | BI27: 0 | BJ27: 0 | BK27: 0 | BL27: 0 | BM27: 0 | BN27: 0 | BO27: 0 | BP27: 0 | BQ27: 0 | BR27: 0 | BS27: 0 | BT27: 0 | BU27: =VLOOKUP(BF27,Cote,$AG$2+2)*BB27 -> 0 | BV27: 0 | BW27: 0 | BY27: 0 | BZ27: 0 | CA27: 0 | CB27: =SUM(CB23:CB26) -> 0 | CC27: Total à déduire du cash
Z28: =VLOOKUP(3,Commentaire,AG20) ->  | AH28: idem figé | AL28: Option BELL | AN28: 6 | BA28: 0 | BB28: 0 | BC28: 0 | BD28: 0 | BF28: 6 | BG28: =AO28*AO88*-1 -> 0 | BH28: =AP28*AP88*-1 -> 0 | BI28: 0 | BJ28: 0 | BK28: 0 | BL28: 0 | BM28: 0 | BN28: 0 | BO28: 0 | BP28: 0 | BQ28: 0 | BR28: 0 | BS28: 0 | BT28: 0 | BU28: =VLOOKUP(BF28,$AN$88:$BA$89,$AG$2+1)*BB28 -> 0 | BV28: 0 | BW28: 0 | BY28: 0 | BZ28: 0 | CA28: 0 | CD28: ="" -> 
Z29: =VLOOKUP(4,Commentaire,AG21) ->  | AF29: Texte pour futur : | AJ29: =IF(OR(AJ27="put",AJ28="put"),"put",0) -> 0 | AL29: Option DIVO | AN29: 7 | BB29: 0 | BC29: 0 | BD29: 0 | BF29: 7 | BG29: =AO29*AO89*-1 -> 0 | BH29: =AP29*AP89*-1 -> 0 | BI29: 0 | BJ29: 0 | BK29: 0 | BL29: 0 | BM29: 0 | BN29: 0 | BO29: 0 | BP29: 0 | BQ29: 0 | BR29: 0 | BS29: 0 | BT29: 0 | BU29: =VLOOKUP(BF29,$AN$88:$BA$89,$AG$2+1)*BB29 -> 0 | BV29: 0 | BW29: 0 | BY29: 0 | BZ29: 0 | CA29: 0 | CD29: ="" -> 
Z30: =VLOOKUP(5,Commentaire,AG22) -> Prêt pour jouer | AF30: 1 | AG30: fin avril | AL30: VALIDATION DES MOIS | BB30: 1 | BC30: <- | BG30: =SUMIF(BG23:BG29,">0") -> 0 | BH30: =SUMIF(BH23:BH29,">0") -> 0 | BI30: 0 | BJ30: 0 | BK30: 0 | BL30: 0 | BM30: 0 | BN30: 0 | BO30: 0 | BP30: 0 | BQ30: 0 | BR30: 0 | BS30: =SUM(BS23:BS29) -> 0 | BT30: 0 | BU30: =SUM(BU23:BU29) -> 0 | BV30: 0 | BW30: 0 | BY30: 0 | BZ30: 0 | CA30: 0 | CD30: ="" -> 
AF31: 2 | AG31: fin août | BG31: =SUMIF(BG23:BG30,"<0") -> 0 | BH31: =SUMIF(BH23:BH30,"<0") -> 0 | BI31: 0 | BJ31: 0 | BK31: 0 | BL31: 0 | BM31: 0 | BN31: 0 | BO31: 0 | BP31: 0 | BQ31: 0 | BR31: 0 | BS31: =SUM(BS28:BS29) -> 0 | CD31: ="" -> 
AF32: 3 | AG32: fin décembre | AL32: Achats/Ventes joueur | AM32: A | AO32: Nombre de titres achetés ou vendus. Nom : Achat_vente_A | BB32: =AVERAGE(BB25:BB28) -> 0
AF33: rnd mois/4 | AG33: =IF(AG6=TRUE,3,ROUND((AG2+2)/4,0)) -> 1 | AO33: jan | AP33: fév | AQ33: mars | AR33: avril | AS33: mai | AT33: juin | AU33: juillet | AV33: août | AW33: sep | AX33: oct | AY33: nov | AZ33: déc | BB33: Total | BG33: 1 | BH33: 2 | BI33: 3 | BJ33: 4 | BK33: 5 | BL33: 6 | BM33: 7 | BN33: 8 | BO33: 9 | BP33: 10 | BQ33: 11 | BR33: 12 | BT33: Dép/tot | BU33: cours*tot
AL34: Titre | AN34: 0 | BA34: 0 | BB34: 0 | BC34: achats | BD34: ventes | BG34: jan | BH34: fév | BI34: mars | BJ34: avril | BK34: mai | BL34: juin | BM34: juillet | BN34: août | BO34: sep | BP34: oct | BQ34: nov | BR34: déc | BS34: Dépense | BT34: Prix moy | BU34: Inv. Final | BV34: achats | BW34: ventes | BY34: Ventes | BZ34: PRAMV | CA34: BB
AL35: Abeco | AN35: 1 | BA35: 0 | BB35: =SUM(AO35:AZ35) -> 0 | BC35: =SUMIF(AO35:AZ35,">0") -> 0 | BD35: =BC35-BB35 -> 0 | BF35: 1 | BG35: =AO35*AO11*-1 -> 0 | BH35: 0 | BI35: 0 | BJ35: 0 | BK35: 0 | BL35: 0 | BM35: 0 | BN35: 0 | BO35: 0 | BP35: 0 | BQ35: 0 | BR35: 0 | BS35: =SUM(BG35:BR35) -> 0 | BT35: =IF(BB35=0,0,BS35/BB35*-1) -> 0 | BU35: =VLOOKUP(BF35,Cote,$AG$2+2)*BB35 -> 0 | BV35: =SUMIF(BG35:BR35,"<0") -> 0 | BW35: =BS35-BV35 -> 0 | BY35: =BW35 -> 0 | BZ35: =(BV35*-1)-BU35 -> 0 | CA35: =IF(BU35<0,0,BY35-BZ35) -> 0 | CB35: =IF(CC35="oui",BY35-BZ35,0) -> 0 | CC35: =IF(BB35<0,"oui","non") -> non
AF36: Mac =1, PC = 2 | AH36: =Accueil!C3 -> 2 | AL36: Bell & Cie | AN36: 2 | BA36: 0 | BB36: =SUM(AO36:AZ36) -> 0 | BC36: =SUMIF(AO36:AZ36,">0") -> 0 | BD36: =BC36-BB36 -> 0 | BF36: 2 | BG36: 0 | BH36: 0 | BI36: 0 | BJ36: 0 | BK36: 0 | BL36: 0 | BM36: 0 | BN36: 0 | BO36: 0 | BP36: 0 | BQ36: 0 | BR36: 0 | BS36: =SUM(BG36:BR36) -> 0 | BT36: =IF(BB36=0,0,BS36/BB36*-1) -> 0 | BU36: =VLOOKUP(BF36,Cote,$AG$2+2)*BB36 -> 0 | BV36: =SUMIF(BG36:BR36,"<0") -> 0 | BW36: =BS36-BV36 -> 0 | BY36: =BW36 -> 0 | BZ36: =(BV36*-1)-BU36 -> 0 | CA36: =IF(BU36<0,0,BY36-BZ36) -> 0 | CB36: =IF(CC36="oui",BY36-BZ36,0) -> 0 | CC36: =IF(BB36<0,"oui","non") -> non
D37: Pour : | F37: 0 | AL37: Comon | AN37: 3 | BA37: 0 | BB37: 0 | BC37: 0 | BD37: 0 | BF37: 3 | BG37: 0 | BH37: 0 | BI37: 0 | BJ37: 0 | BK37: 0 | BL37: 0 | BM37: 0 | BN37: 0 | BO37: 0 | BP37: 0 | BQ37: 0 | BR37: 0 | BS37: 0 | BT37: 0 | BU37: =VLOOKUP(BF37,Cote,$AG$2+2)*BB37 -> 0 | BV37: 0 | BW37: 0 | BY37: 0 | BZ37: 0 | CA37: 0 | CB37: =IF(CC37="oui",BY37-BZ37,0) -> 0 | CC37: =IF(BB37<0,"oui","non") -> non
AL38: Divogan | AN38: 4 | BA38: 0 | BB38: 0 | BC38: 0 | BD38: 0 | BF38: 4 | BG38: 0 | BH38: 0 | BI38: 0 | BJ38: 0 | BK38: 0 | BL38: 0 | BM38: 0 | BN38: 0 | BO38: 0 | BP38: 0 | BQ38: 0 | BR38: 0 | BS38: 0 | BT38: 0 | BU38: =VLOOKUP(BF38,Cote,$AG$2+2)*BB38 -> 0 | BV38: 0 | BW38: 0 | BY38: 0 | BZ38: 0 | CA38: 0 | CB38: =IF(CC38="oui",BY38-BZ38,0) -> 0 | CC38: =IF(BB38<0,"oui","non") -> non
Z39: =IF(AG2=13,"Nouvelle partie = New","") ->  | AL39: Oblig. Emotion | AN39: 5 | BB39: 0 | BC39: 0 | BD39: 0 | BF39: 5 | BG39: 0 | BH39: 0 | BI39: 0 | BJ39: 0 | BK39: 0 | BL39: 0 | BM39: 0 | BN39: 0 | BO39: 0 | BP39: 0 | BQ39: 0 | BR39: 0 | BS39: 0 | BT39: 0 | BU39: =VLOOKUP(BF39,Cote,$AG$2+2)*BB39 -> 0 | BV39: 0 | BW39: 0 | BY39: 0 | BZ39: 0 | CA39: 0 | CB39: =SUM(CB35:CB38) -> 0 | CC39: Total à déduire du cash
Z40: =IF(AG2=13,"Pour quitter le jeu, cliquer","") ->  | AL40: Option BELL | AN40: 6 | BB40: 0 | BC40: 0 | BD40: 0 | BF40: 6 | BG40: =AO40*AO92*-1 -> 0 | BH40: =AP40*AP92*-1 -> 0 | BI40: 0 | BJ40: 0 | BK40: 0 | BL40: 0 | BM40: 0 | BN40: 0 | BO40: 0 | BP40: 0 | BQ40: 0 | BR40: 0 | BS40: 0 | BT40: 0 | BU40: =VLOOKUP(BF40,$AN$92:$BA$93,$AG$2+1)*BB40 -> 0 | BV40: 0 | BW40: 0 | BY40: 0 | BZ40: 0 | CA40: 0
A41: © Y. Péguiron - Infodidac - rév. mai 2015 | Z41: =IF(AG2=13,"la flèche Fermer de la page d'accueil.","") ->  | AL41: Option DIVO | AN41: 7 | BB41: 0 | BC41: 0 | BD41: 0 | BF41: 7 | BG41: =AO41*AO93*-1 -> 0 | BH41: =AP41*AP93*-1 -> 0 | BI41: 0 | BJ41: 0 | BK41: 0 | BL41: 0 | BM41: 0 | BN41: 0 | BO41: 0 | BP41: 0 | BQ41: 0 | BR41: 0 | BS41: 0 | BT41: 0 | BU41: =VLOOKUP(BF41,$AN$92:$BA$93,$AG$2+1)*BB41 -> 0 | BV41: 0 | BW41: 0 | BY41: 0 | BZ41: 0 | CA41: 0
AD42: ="" ->  | AL42: VALIDATION DES MOIS | BB42: 1 | BC42: <- | BG42: =SUMIF(BG35:BG41,">0") -> 0 | BH42: 0 | BI42: 0 | BJ42: 0 | BK42: 0 | BL42: 0 | BM42: 0 | BN42: 0 | BO42: 0 | BP42: 0 | BQ42: 0 | BR42: 0 | BS42: =SUM(BS35:BS41) -> 0 | BT42: 0 | BU42: =SUM(BU35:BU41) -> 0 | BV42: =SUM(BV35:BV41) -> 0 | BW42: =SUM(BW35:BW41) -> 0 | BY42: =SUM(BY35:BY41) -> 0 | BZ42: =SUM(BZ35:BZ41) -> 0 | CA42: =SUM(CA35:CA41) -> 0
AD43: ="" ->  | BG43: =SUMIF(BG35:BG42,"<0") -> 0 | BH43: 0 | BI43: 0 | BJ43: 0 | BK43: 0 | BL43: 0 | BM43: 0 | BN43: 0 | BO43: 0 | BP43: 0 | BQ43: 0 | BR43: 0 | BS43: =SUM(BS40:BS41) -> 0
AD44: ="" ->  | AO44: Dividendes, intérêts courus et frais bancaires. Nom : Dividende | BH44: Cours_compta
AD45: ="" ->  | AF45: Texte pour remarques. Nom : Commentaire | AQ45: ABEC | AT45: BELL | AW45: COMO | AX45: DIVO | AZ45: Oblig. | BA45: Warrants | BB45: Cumul | BH45: 1 | BI45: 2 | BJ45: 3 | BK45: 4 | BL45: 5 | BM45: 6 | BN45: 7 | BO45: 8 | BP45: 9 | BQ45: 10 | BR45: 11 | BS45: 12 | BT45: 13 | CD45: ="" -> 
AD46: ="" ->  | AF46: Z26 à Z30 | AG46: 2 | AH46: 3 | AI46: 4 | AJ46: 5 | AK46: 6 | AM46: Dividende | AQ46: =IF(AQ69>AN69,0.9,0.6) -> 0.9 | AT46: =IF(AT70>AN70,90,60) -> 60 | AW46: =IF(AW71>AN71,15,11) -> 11 | AX46: =IF(AX72>AN72,51,42) -> 42 | BB46: mens. | BC46: Total int et frais | BF46: Sommes validation | BH46: =AO30+AO42 -> 0 | BI46: 0 | BJ46: 0 | BK46: 0 | BL46: 0 | BM46: 0 | BN46: 0 | BO46: 0 | BP46: 0 | BQ46: 0 | BR46: 0 | BS46: 0 | BT46: =BS46 -> 0 | CD46: ="" -> 
AD47: ="" ->  | AE47: AG18 | AF47: 1 | AG47: ="" ->  | AH47: contrat d'achat à terme | AK47: ="" ->  | AL47: A | AN47: 1 | AO47: 1 | AP47: 2 | AQ47: 3 | AR47: 4 | AS47: 5 | AT47: 6 | AU47: 7 | AV47: 8 | AW47: 9 | AX47: 10 | AY47: 11 | AZ47: 12 | BA47: 13 | BD47: ch | BE47: Pr | CD47: ="" -> 
AD48: ="" ->  | AE48: AG19 | AF48: 2 | AG48: ="" ->  | AH48: Pas possible | AK48: ="" ->  | AL48: Cumul | AM48: Div. | AN48: 2 | AQ48: =AQ53 -> 0 | AR48: =AQ48 -> 0 | AS48: =AR48 -> 0 | AT48: =AT53+AS48 -> 0 | AU48: =AT48 -> 0 | AV48: =AU48 -> 0 | AW48: =AW53+AV48 -> 0 | AX48: =AX53+AW48 -> 0 | AY48: =AX48 -> 0 | AZ48: =AY48 -> 0 | BA48: =AZ48+BA53 -> 0 | BB48: =HLOOKUP(AG2,Dividende,2) -> 0 | BC48: =SUM(BB48:BB50) -> 0 | BD48: =BB50 -> 0 | BE48: =SUM(BB48:BB49) -> 0 | CD48: ="" -> 
AD49: ="" ->  | AE49: AG20 | AF49: 3 | AG49: ="" ->  | AH49: Séance de liquidation | AI49: Partie terminée | AJ49: Pas possible ce mois | AK49: Mois déjà saisi | AL49: Patientez ! Patientez ! | AM49: Int. cour. | AN49: 3 | AO49: =AO27*5000*AO74/100*-1 -> 0 | AP49: =(AP27*5000*AP74/100*-1)+AO49 -> 0 | AQ49: 0 | AR49: 0 | AS49: 0 | AT49: 0 | AU49: 0 | AV49: 0 | AW49: 0 | AX49: 0 | AY49: 0 | AZ49: 0 | BA49: =AZ49+BA54 -> 0 | BB49: =HLOOKUP($AG$2,Dividende,3) -> 0 | CD49: ="" -> 
AD50: ="" ->  | AE50: AG21 | AF50: 4 | AG50: ="" ->  | AH50: Vous n'avez pas la couverture | AI50: Donnez vos ordres ! | AJ50: Manque de liquidités | AK50: Ordre minimum CHF 1000.- | AL50: Opération impossible | AM50: Frais | AN50: 4 | AO50: =AO55 -> 0 | AP50: =AO50+AP55 -> 0 | AQ50: =AP50+AQ55 -> 0 | AR50: 0 | AS50: 0 | AT50: 0 | AU50: 0 | AV50: 0 | AW50: 0 | AX50: 0 | AY50: 0 | AZ50: 0 | BA50: =AZ50+BA55 -> 0 | BB50: =HLOOKUP($AG$2,Dividende,4) -> 0 | CD50: ="" -> 
AD51: ="" ->  | AE51: AG22 | AF51: 5 | AG51: ="" ->  | AH51: Prêt pour jouer | AI51: ="Résultat = "& ROUND(Y10,2) -> Résultat = 0 | AJ51: Cochez la case option ! | AK51: Call ou Put; pas les deux ! | AL51: OK, ordre enregistré | AM51: emprunt | AN51: 5 | BA51: =IF(AG2=13,SUM(AO51:AZ51)*10*BA52/1200,0) -> 0 | BB51: =BA51 -> 0 | BC51: =SUM(AO51:AZ51) -> 0 | BG51: Exercice des options | CD51: ="" -> 
AD52: ="" ->  | AK52: ="" ->  | AM52: nb mois | AN52: 6 | AO52: =IF(AO51=0,0,13-AO75) -> 0 | AP52: 0 | AQ52: 0 | AR52: 0 | AS52: 0 | AT52: 0 | AU52: 0 | AV52: 0 | AW52: 0 | AX52: 0 | AY52: 0 | AZ52: 0 | BA52: =SUM(AO52:AZ52)*-1 -> 0 | BC52: Etat de la dette | CD52: ="" -> 
AD53: ="" ->  | AK53: ="" ->  | AL53: Mensuel | AM53: Div. | AN53: 7 | AQ53: =IF(AQ70<0,0,AQ70*AQ$46) -> 0 | AT53: =IF(AT71<0,0,AT71*AT46) -> 0 | AW53: =IF(AW72<0,0,AW72*AW46) -> 0 | AX53: =IF(AX73<0,0,AX73*AX46) -> 0 | AZ53: =AZ70*AZ46 -> 0 | BA53: =BM56 -> 0 | BB53: =SUM(AO53:BA53) -> 0 | BG53: Options A | CD53: ="" -> 
AD54: ="" ->  | AK54: ="" ->  | AM54: Int. Cour | AN54: 8 | AO54: =(AO27*5000)*AO74/100*-1 -> 0 | AP54: =(AP27*5000)*AP74/100*-1 -> 0 | AQ54: =(AQ27*5000)*AQ74/100*-1 -> 0 | AR54: 0 | AS54: 0 | AT54: 0 | AU54: 0 | AV54: 0 | AW54: 0 | AX54: 0 | AY54: 0 | AZ54: 0 | BA54: =IF(AG2=13,BB27*5000*4.25/100,0) -> 0 | BB54: =SUM(AO54:BA54) -> 0 | BC54: somme pour contrôle | BG54: Stike | BH54: prix 31.12 | BI54: diff. | BJ54: st.fin | BK54: Résultat | BL54: somme + | CD54: ="" -> 
AD55: ="" ->  | AK55: ="" ->  | AM55: Frais | AN55: 9 | AO55: =(((ABS(BG23)+ABS(BG24)+ABS(BG25)+ABS(BG26))*1.185/100)+(ABS(BG27)*0.885/100))*-1 -> 0 | AP55: 0 | AQ55: 0 | AR55: 0 | AS55: 0 | AT55: 0 | AU55: 0 | AV55: 0 | AW55: 0 | AX55: 0 | AY55: 0 | AZ55: 0 | BA55: =BA51 -> 0 | BB55: =SUM(AO55:BA55) -> 0 | BG55: =BD16 -> 2600 | BH55: =$AZ$12 -> 2829 | BI55: =IF(AI14=1,BG55-BH55,BH55-BG55) -> 229 | BJ55: =BB28 -> 0 | BK55: =BI55*BJ55 -> 0 | BL55: =IF(BK55>0,BK55,0) -> 0 | BM55: Toto | CD55: ="" -> 
AD56: ="" ->  | AK56: ="" ->  | AN56: 10 | AO56: =SUM(AO53:AO55) -> 0 | AP56: =SUM(AP53:AP55) -> 0 | AQ56: 0 | AR56: 0 | AS56: 0 | AT56: 0 | AU56: 0 | AV56: 0 | AW56: 0 | AX56: 0 | AY56: 0 | AZ56: 0 | BA56: 0 | BG56: =BD17 -> 620 | BH56: =$AZ$14 -> 529 | BI56: =IF(AJ14=1,BG56-BH56,BH56-BG56) -> -91 | BJ56: =BB29 -> 0 | BK56: =BI56*BJ56 -> 0 | BL56: =IF(BK56>0,BK56,0) -> 0 | BM56: =SUM(BL55:BL56) -> 0 | CD56: ="" -> 
AD57: ="" ->  | AK57: ="" ->  | AL57: B | AN57: 1 | AO57: 1 | AP57: 2 | AQ57: 3 | AR57: 4 | AS57: 5 | AT57: 6 | AU57: 7 | AV57: 8 | AW57: 9 | AX57: 10 | AY57: 11 | AZ57: 12 | BA57: 13 | BD57: Ch | BE57: Pr | CD57: ="" -> 
AD58: ="" ->  | AK58: ="" ->  | AL58: Cumul | AM58: Div. | AN58: 2 | AQ58: =AQ63 -> 0 | AR58: =AQ58 -> 0 | AS58: =AR58 -> 0 | AT58: =AT63+AS58 -> 0 | AU58: =AT58 -> 0 | AV58: =AU58 -> 0 | AW58: =AW63+AV58 -> 0 | AX58: =AX63+AW58 -> 0 | AY58: =AX58 -> 0 | AZ58: =AY58 -> 0 | BA58: =AZ58+BA63 -> 0 | BB58: =HLOOKUP($AG$2,Dividende,12) -> 0 | BC58: =SUM(BB58:BB60) -> 0 | BD58: =BB60 -> 0 | BE58: =SUM(BB58:BB59) -> 0 | CD58: ="" -> 
AD59: ="" ->  | AK59: ="" ->  | AM59: Int. cour. | AN59: 3 | AO59: =AO39*5000*AO83/100*-1 -> 0 | AP59: =(AP39*5000*AP83/100*-1)+AO59 -> 0 | AQ59: =(AQ39*5000*AQ83/100*-1)+AP59 -> 0 | AR59: 0 | AS59: 0 | AT59: 0 | AU59: 0 | AV59: 0 | AW59: 0 | AX59: 0 | AY59: 0 | AZ59: 0 | BA59: =AZ59+BA64 -> 0 | BB59: =HLOOKUP($AG$2,Dividende,13) -> 0 | CD59: ="" -> 
AD60: ="" ->  | AK60: ="" ->  | AM60: Frais | AN60: 4 | AO60: =AO65 -> 0 | AP60: =AO60+AP65 -> 0 | AQ60: =AP60+AQ65 -> 0 | AR60: 0 | AS60: 0 | AT60: 0 | AU60: 0 | AV60: 0 | AW60: 0 | AX60: 0 | AY60: 0 | AZ60: 0 | BA60: =AZ60+BA65 -> 0 | BB60: =HLOOKUP($AG$2,Dividende,14) -> 0 | CD60: ="" -> 
AD61: ="" ->  | AK61: ="" ->  | AM61: emprunt | AN61: 5 | BA61: =IF(AG2=13,SUM(AO61:AZ61)*10*BA62/1200,0) -> 0 | BB61: =BA61 -> 0 | BC61: =SUM(AO61:AZ61) -> 0 | CD61: ="" -> 
AD62: ="" ->  | AK62: ="" ->  | AM62: nb mois | AN62: 6 | AO62: =IF(AO61=0,0,13-AO84) -> 0 | AP62: =IF(AP61=0,0,13-AP84) -> 0 | AQ62: =IF(AQ61=0,0,13-AQ84) -> 0 | AR62: =IF(AR61=0,0,13-AR84) -> 0 | AS62: 0 | AT62: 0 | AU62: 0 | AV62: 0 | AW62: 0 | AX62: 0 | AY62: 0 | AZ62: 0 | BA62: =SUM(AO62:AZ62)*-1 -> 0 | BC62: Etat de la dette | CD62: ="" -> 
AD63: ="" ->  | AK63: ="" ->  | AL63: Mensuel | AM63: Div. | AN63: 7 | AQ63: =IF(AQ79<0,0,AQ79*AQ$46) -> 0 | AT63: =IF(AT80<0,0,AT80*AT$46) -> 0 | AW63: =IF(AW81<0,0,AW81*AW$46) -> 0 | AX63: =IF(AX82<0,0,AX82*AX$46) -> 0 | AZ63: =AZ79*AZ46 -> 0 | BA63: =BM66 -> 0 | BB63: =SUM(AO63:BA63) -> 0 | BG63: Options B | CD63: ="" -> 
AD64: ="" ->  | AK64: ="" ->  | AM64: Int. Cour | AN64: 8 | AO64: =(AO39*5000)*AO83/100*-1 -> 0 | AP64: =(AP39*5000)*AP83/100*-1 -> 0 | AQ64: 0 | AR64: 0 | AS64: 0 | AT64: 0 | AU64: 0 | AV64: 0 | AW64: 0 | AX64: 0 | AY64: 0 | AZ64: 0 | BA64: =IF(AG2=13,BB39*5000*4.25/100,0) -> 0 | BB64: =SUM(AO64:BA64) -> 0 | BC64: somme pour contrôle | BG64: Stike | BH64: prix 31.12 | BI64: diff. | BJ64: st.fin | BK64: Résultat | BL64: somme + | CD64: ="" -> 
AD65: ="" ->  | AK65: ="" ->  | AM65: Frais | AN65: 9 | AO65: =(((ABS(BG35)+ABS(BG36)+ABS(BG37)+ABS(BG38))*1.185/100)+(ABS(BG39)*0.885/100))*-1 -> 0 | AP65: =(((ABS(BH35)+ABS(BH36)+ABS(BH37)+ABS(BH38))*1.185/100)+(ABS(BH39)*0.885/100))*-1 -> 0 | AQ65: 0 | AR65: 0 | AS65: 0 | AT65: 0 | AU65: 0 | AV65: 0 | AW65: 0 | AX65: 0 | AY65: 0 | AZ65: 0 | BA65: =BA61 -> 0 | BB65: =SUM(AO65:BA65) -> 0 | BG65: =BE16 -> 2600 | BH65: =$AZ$12 -> 2829 | BI65: =IF(AI15=1,BG65-BH65,BH65-BG65) -> 229 | BJ65: =BB40 -> 0 | BK65: =BI65*BJ65 -> 0 | BL65: =IF(BK65>0,BK65,0) -> 0 | BM65: Toto | CD65: ="" -> 
AD66: ="" ->  | AK66: ="" ->  | AN66: 10 | AO66: =SUM(AO63:AO65) -> 0 | AP66: =SUM(AP63:AP65) -> 0 | AQ66: 0 | AR66: 0 | AS66: 0 | AT66: 0 | AU66: 0 | AV66: 0 | AW66: 0 | AX66: 0 | AY66: 0 | AZ66: 0 | BA66: 0 | BG66: =BE17 -> 620 | BH66: =$AZ$14 -> 529 | BI66: =IF(AJ15=1,BG66-BH66,BH66-BG66) -> -91 | BJ66: =BB41 -> 0 | BK66: =BI66*BJ66 -> 0 | BL66: =IF(BK66>0,BK66,0) -> 0 | BM66: =SUM(BL65:BL66) -> 0 | CD66: ="" -> 
AD67: ="" ->  | AK67: ="" ->  | CD67: ="" -> 
AD68: ="" ->  | AK68: ="" ->  | AO68: Nombre de titres, cumulé pour le dividende | CD68: ="" -> 
AD69: ="" ->  | AK69: ="" ->  | AM69: A | AO69: jan | AP69: fév | AQ69: mars | AR69: avril | AS69: mai | AT69: juin | AU69: juillet | AV69: août | AW69: sep | AX69: oct | AY69: nov | AZ69: déc | CD69: ="" -> 
AD70: ="" ->  | AK70: ="" ->  | AN70: 1 | AQ70: =SUM($AO23:AQ23) -> 0 | CD70: ="" -> 
AD71: ="" ->  | AK71: ="" ->  | AN71: 2 | AT71: =SUM($AO24:AT24) -> 0 | CD71: ="" -> 
AD72: ="" ->  | AK72: ="" ->  | AN72: 3 | AW72: =SUM($AO25:AW25) -> 0 | CD72: ="" -> 
AD73: ="" ->  | AK73: ="" ->  | AN73: 4 | AX73: =SUM($AO26:AX26) -> 0 | CD73: ="" -> 
AD74: ="" ->  | AK74: ="" ->  | AM74: Obligation | AO74: =4.25*AO75/12 -> 0.3541666667 | AP74: 0.7083333333 | AQ74: 1.0625 | AR74: 1.416666667 | AS74: 1.770833333 | AT74: 2.125 | AU74: 2.479166667 | AV74: 2.833333333 | AW74: 3.1875 | AX74: 3.541666667 | AY74: 3.895833333 | AZ74: 4.25 | CD74: ="" -> 
AD75: ="" ->  | AK75: ="" ->  | AO75: 1 | AP75: 2 | AQ75: 3 | AR75: 4 | AS75: 5 | AT75: 6 | AU75: 7 | AV75: 8 | AW75: 9 | AX75: 10 | AY75: 11 | AZ75: 12 | BB75: Cumul pour le mois donné | CD75: ="" -> 
AD76: ="" ->  | AK76: ="" ->  | CD76: ="" -> 
AD77: ="" ->  | AK77: ="" ->  | CD77: ="" -> 
AD78: ="" ->  | AK78: ="" ->  | AM78: B | AO78: jan | AP78: fév | AQ78: mars | AR78: avril | AS78: mai | AT78: juin | AU78: juillet | AV78: août | AW78: sep | AX78: oct | AY78: nov | AZ78: déc | CD78: ="" -> 
AD79: ="" ->  | AK79: ="" ->  | AN79: 1 | AQ79: =SUM($AO35:AQ35) -> 0 | CD79: ="" -> 
AD80: ="" ->  | AK80: ="" ->  | AN80: 2 | AT80: =SUM($AO36:AT36) -> 0 | CD80: ="" -> 
AD81: ="" ->  | AK81: ="" ->  | AN81: 3 | AW81: =SUM($AO37:AW37) -> 0 | CD81: ="" -> 
AD82: ="" ->  | AK82: ="" ->  | AN82: 4 | AP82: 0 | AQ82: 0 | AR82: 0 | AS82: 0 | AT82: 0 | AU82: 0 | AV82: 0 | AW82: 0 | AX82: =SUM($AO38:AX38) -> 0 | AY82: 0 | AZ82: 0 | CD82: ="" -> 
AD83: ="" ->  | AK83: ="" ->  | AM83: Obligation | AO83: =4.25*AO84/12 -> 0.3541666667 | AP83: 0.7083333333 | AQ83: 1.0625 | AR83: 1.416666667 | AS83: 1.770833333 | AT83: 2.125 | AU83: 2.479166667 | AV83: 2.833333333 | AW83: 3.1875 | AX83: 3.541666667 | AY83: 3.895833333 | AZ83: 4.25 | CD83: ="" -> 
AD84: ="" ->  | AK84: ="" ->  | AO84: 1 | AP84: 2 | AQ84: 3 | AR84: 4 | AS84: 5 | AT84: 6 | AU84: 7 | AV84: 8 | AW84: 9 | AX84: 10 | AY84: 11 | AZ84: 12 | CD84: ="" -> 
CD85: ="" -> 
AM86: Retour du cours pratiqués pour les warrants | CD86: ="" -> 
AN87: Joueurs A | BA87: prix moyen | CD87: ="" -> 
AM88: Warrant BELL | AN88: 6 | AO88: 0 | AP88: 0 | AQ88: 0 | AR88: 0 | AS88: 0 | AT88: 0 | AU88: 0 | AV88: 0 | AW88: 0 | AX88: 0 | AY88: 0 | AZ88: 0 | BA88: 0 | CD88: ="" -> 
AM89: Warrant DIVO | AN89: 7 | AO89: 0 | AP89: 0 | AQ89: 0 | AR89: 0 | AS89: 0 | AT89: 0 | AU89: 0 | AV89: 0 | AW89: 0 | AX89: 0 | AY89: 0 | AZ89: 0 | BA89: 0 | CD89: ="" -> 
AO90: 0 | AP90: 0 | AQ90: 0 | AR90: 0 | AS90: 0 | AT90: 0 | AU90: 0 | AV90: 0 | AW90: 0 | AX90: 0 | AY90: 0 | AZ90: 0 | BA90: 0 | CD90: ="" -> 
AN91: Joueurs B | AO91: 0 | AP91: 0 | AQ91: 0 | AR91: 0 | AS91: 0 | AT91: 0 | AU91: 0 | AV91: 0 | AW91: 0 | AX91: 0 | AY91: 0 | AZ91: 0 | BA91: 0 | CD91: ="" -> 
AM92: Warrant BELL | AN92: 6 | AO92: 0 | AP92: 0 | AQ92: 0 | AR92: 0 | AS92: 0 | AT92: 0 | AU92: 0 | AV92: 0 | AW92: 0 | AX92: 0 | AY92: 0 | AZ92: 0 | BA92: 0 | CD92: ="" -> 
AM93: Warrant DIVO | AN93: 7 | AO93: 0 | AP93: 0 | AQ93: 0 | AR93: 0 | AS93: 0 | AT93: 0 | AU93: 0 | AV93: 0 | AW93: 0 | AX93: 0 | AY93: 0 | AZ93: 0 | BA93: 0 | CD93: ="" -> 
AO94: jan | AP94: fév | AQ94: mars | AR94: avril | AS94: mai | AT94: juin | AU94: juillet | AV94: août | AW94: sep | AX94: oct | AY94: nov | AZ94: déc | CD94: ="" -> 
AN95: cells | AO95: 41 | AP95: 42 | AQ95: 43 | AR95: 44 | AS95: 45 | AT95: 46 | AU95: 47 | AV95: 48 | AW95: 49 | AX95: 50 | AY95: 51 | AZ95: 52 | CD95: ="" -> 
CD96: ="" -> 
AN97: La partie warrant de la cote bleu est mobile, cette partie est fixée en fonction des achats et ventes | CD97: ="" -> 

Sheet Comptabilité
A1: ='Bureau Direction'!AG2 -> 1 | B1: ='Bureau Direction'!AG3 -> 1 | AF1: 32 | AG1: 33 | AH1: 34 | AI1: 35 | AJ1: 36 | AK1: 37
L2: =VLOOKUP(AJ4,Accueil!K20:M21,2) -> Julius | AA2: zoom | AB2: 88 | AF2: Mois pour le titre | AI2: Variable GLOB
AF3: 1 | AG3: janvier | AH3: =IF($AJ$3<AF3,"",AG3) -> janvier | AI3: Actif mois /firm | AJ3: =A1 -> 1 | AK3: =B1 -> 1
D4: Les compte "Titres" de | L4: =VLOOKUP(AJ5,AF3:AG15,2) -> janvier | AF4: 2 | AG4: février | AH4: =IF($AJ$3<AF4,"",AG4) ->  | AI4: Firm compta | AJ4: 1
AF5: 3 | AG5: mars | AH5: =IF($AJ$3<AF5,"",AG5) ->  | AI5: Mois compta | AJ5: 1
A6: Situation Titres | C6: TITRES | AF6: 4 | AG6: avril | AI6: Achats
A7: =IF(AJ4=1,'Bureau Direction'!CA30,'Bureau Direction'!CA42) -> 0 | D7: =IF(I7=0,"","Achats de titres") ->  | I7: =IF(AJ4=1,HLOOKUP(AJ5,Valeur_A,11)*-1,HLOOKUP(AJ5,Valeur_B,11)*-1) -> 0 | K7: =IF(P7=0,"","Ventes de titres") ->  | P7: =IF(AJ4=1,HLOOKUP(AJ5,Valeur_A,10),HLOOKUP(AJ5,Valeur_B,10)) -> 0 | AF7: 5 | AG7: mai | AI7: Prix achat
D8: =IF(I8="","","Diminution") ->  | I8: =IF(P7>I7,P7-I7,"") ->  | K8: =IF(P8="","","Augmentation") ->  | P8: =IF(I7>P7,I7-P7,"") ->  | AF8: 6 | AG8: juin | AI8: Salaires
A9: Ch. & Prod. | I9: =SUM(I7:I8) -> 0 | P9: =SUM(P7:P8) -> 0 | AF9: 7 | AG9: juillet | AI9: Prix salaire
A10: =IF(AJ4=1,'Bureau Direction'!BC48,'Bureau Direction'!BC58) -> 0 | AF10: 8 | AG10: août | AI10: Pub
A11: Résultat | C11: CHARGES & PRODUITS | AF11: 9 | AG11: septembre | AH11: =IF($AJ$3<AF11,"",AG11) ->  | AI11: Frais rech
A12: =A7+A10 -> 0 | D12: =IF(I12=0,"","Courtage et frais") ->  | I12: =IF(AJ4=1,HLOOKUP(AJ5,Dividende_1,9)*-1,HLOOKUP(AJ5,Dividende_2,9)*-1) -> 0 | K12: =IF(P12=0,"","Dividendes") ->  | P12: =IF(AJ4=1,HLOOKUP(AJ5,Dividende_1,7),HLOOKUP(AJ5,Dividende_2,7)) -> 0 | AF12: 10 | AG12: octobre | AH12: =IF($AJ$3<AF12,"",AG12) ->  | AI12: Ventes
D13: =IF(I13=0,"","Intérêts débiteurs") ->  | I13: =IF(AJ4=1,IF(HLOOKUP(AJ5,Dividende_1,8)>0,0,HLOOKUP(AJ5,Dividende_1,8)*-1),IF(HLOOKUP(AJ5,Dividende_2,8)>0,0,HLOOKUP(AJ5,Dividende_2,8)*-1)) -> 0 | K13: =IF(P13=0,"","Intérêts créanciers") ->  | P13: =IF(AJ4=1,IF(HLOOKUP(AJ5,Dividende_1,8)>0,HLOOKUP(AJ5,Dividende_1,8),0),IF(HLOOKUP(AJ5,Dividende_2,8)>0,HLOOKUP(AJ5,Dividende_2,8),0)) -> 0 | AF13: 11 | AG13: novembre | AH13: =IF($AJ$3<AF13,"",AG13) ->  | AI13: Prix vente
AF14: 12 | AG14: décembre | AH14: =IF($AJ$3<AF14,"",AG14) ->  | AI14: Production
D15: =IF(I15="","","Produit des titres") ->  | I15: =IF(SUM(P12:P14)-SUM(I12:I14)>0,SUM(P12:P14)-SUM(I12:I14),"") ->  | K15: =IF(P15="","","Charge des titres") ->  | P15: =IF(SUM(I12:I14)-SUM(P12:P14)>0,SUM(I12:I14)-SUM(P12:P14),"") ->  | T15: =IF(AJ5=13,"Résultat options "& L4,"Etat des options en "& L4) -> Etat des options en janvier | AF15: 13 | AG15: fin décembre | AH15: =IF($AJ$3<AF15,"",AG15) -> 
I16: =SUM(I11:I15) -> 0 | P16: =SUM(P11:P15) -> 0 | V16: Strike | W16: Cours | X16: Équart | Y16: Stock | Z16: Résultat | AA16: Exercice
T17: BELL | U17: =IF(AJ4=1,IF('Bureau Direction'!AI14=1,"Put","Call"),IF('Bureau Direction'!AI15=1,"Put","Call")) -> Call | V17: =IF(AJ4=1,'Bureau Direction'!BG55,'Bureau Direction'!BG65) -> 2600 | W17: =IF(HLOOKUP(AJ5,Cours_compta,2)=0,0,VLOOKUP(2,Cote,AJ5+1)) -> 0 | X17: =ABS(W17-V17) -> 2600 | Y17: =IF(AJ4=1,'Bureau Direction'!BJ55,'Bureau Direction'!BJ65) -> 0 | Z17: =IF(W17=0,0,IF(U17="Call",(W17-V17)*Y17,(V17-W17)*Y17)) -> 0 | AA17: =IF(Y17=0,"",IF(Z17>0,"oui","non")) -> 
T18: DIVO | U18: =IF(AJ4=1,IF('Bureau Direction'!AJ14=1,"Put","Call"),IF('Bureau Direction'!AJ15=1,"Put","Call")) -> Call | V18: =IF(AJ4=1,'Bureau Direction'!BG56,'Bureau Direction'!BG66) -> 620 | W18: =IF(HLOOKUP(AJ5,Cours_compta,2)=0,0,VLOOKUP(4,Cote,AJ5+1)) -> 0 | X18: =ABS(W18-V18) -> 620 | Y18: =IF(AJ4=1,'Bureau Direction'!BJ56,'Bureau Direction'!BJ66) -> 0 | Z18: =IF(W18=0,0,IF(U18="Call",(W18-V18)*Y18,(V18-W18)*Y18)) -> 0 | AA18: =IF(Y18=0,"",IF(Z18>0,"oui","non")) -> 
Z19: =SUMIF(Z17:Z18,">0") -> 0
T22: =IF(AJ5<13,"Situation brute provisoire des options","Résultat brut des options") -> Situation brute provisoire des options | Y22: =Z19 -> 0
V23: - primes | Y23: =IF(AJ4=1,'Bureau Direction'!BS31,'Bureau Direction'!BS43) -> 0
T24: =IF(AJ5<13,"Situation nette provisoire des options","Résultat net des options") -> Situation nette provisoire des options | Y24: =Y22+Y23 -> 0
B25: 75
M35: Relevés des charges et produits
D43: Relevé des charges et produits par mois
E44: Dividendes* | I44: Intérêts courus | K44: Courtage et frais | L44: Total | P44: cumul
C45: 1 | D45: Janvier | E45: =IF($AJ$4=1,HLOOKUP($C45,Dividende_1,7),HLOOKUP($C45,Dividende_2,7)) -> 0 | I45: =IF($AJ$4=1,HLOOKUP($C45,Dividende_1,8),HLOOKUP($C45,Dividende_2,8)) -> 0 | K45: =IF($AJ$4=1,HLOOKUP($C45,Dividende_1,9),HLOOKUP($C45,Dividende_2,9)) -> 0 | L45: =SUM(E45:K45) -> 0 | P45: =L45 -> 0
A46: retour | C46: 2 | D46: Février | E46: =IF($AJ$4=1,HLOOKUP(C46,Dividende_1,7),HLOOKUP(C46,Dividende_2,7)) -> 0 | I46: 0 | K46: 0 | L46: =SUM(E46:K46) -> 0 | P46: =P45+L46 -> 0
C47: 3 | D47: Mars | E47: 0 | I47: 0 | K47: 0 | L47: 0 | P47: =P46+L47 -> 0
C48: 4 | D48: Avril | E48: 0 | I48: 0 | K48: 0 | L48: 0 | P48: 0
C49: 5 | D49: Mai | E49: 0 | I49: 0 | K49: 0 | L49: 0 | P49: 0
C50: 6 | D50: Juin | E50: 0 | I50: 0 | K50: 0 | L50: 0 | P50: 0
C51: 7 | D51: Juillet | E51: 0 | I51: 0 | K51: 0 | L51: 0 | P51: 0
C52: 8 | D52: Août | E52: 0 | I52: 0 | K52: 0 | L52: 0 | P52: 0
C53: 9 | D53: Septembre | E53: 0 | I53: 0 | K53: 0 | L53: 0 | P53: 0
C54: 10 | D54: Octobre | E54: 0 | I54: 0 | K54: 0 | L54: 0 | P54: 0
C55: 11 | D55: Novembre | E55: 0 | I55: 0 | K55: 0 | L55: 0 | P55: =P54+L55 -> 0
C56: 12 | D56: Décembre | E56: 0 | I56: 0 | K56: 0 | L56: 0 | P56: =P55+L56 -> 0
D57: Fin Décembre | I57: =IF($AJ$4=1,HLOOKUP($C58,Dividende_1,8),HLOOKUP($C58,Dividende_2,8)) -> 0 | K57: =IF($AJ$4=1,HLOOKUP($C58,Dividende_1,9),HLOOKUP($C58,Dividende_2,9)) -> 0 | L57: =SUM(E57:K57) -> 0 | P57: =P56+L57 -> 0
C58: 13 | E58: =IF(AJ3=13,IF($AJ$4=1,HLOOKUP(C58,Dividende_1,7),HLOOKUP(C58,Dividende_2,7)),"") ->  | L58: =SUM(E58:K58) -> 0 | P58: =P57+L58 -> 0
E59: =SUM(E45:H58) -> 0 | I59: =SUM(I45:J57) -> 0 | K59: =SUM(K45:K57) -> 0 | L59: =SUM(L45:O58) -> 0
D64: * Dividendes reçus ou attendus

Sheet Information
S1: 1
O3: Warrants
O5: Les Calls (droit d'acheter) et les Puts (droit de vendre) peuvent être achetés en activant la case "option". Ils peuvent être vendus en bourse comme de simples actions pour le 75% de la prime.
C6: Titres | D6: Nominal | G6: Dividendes distribués l'année précédente
C8: Abeco | E8: 10 | G8: 0.8 | H8: en mars | K8: Ordres de bourse
C9: Bell & Cie | E9: 1000 | G9: 80.- - | H9: en juin | K9: Montant minimun
C10: Comon | E10: 100 | G10: 12 | H10: en septembre | K10: CHF 1'000.-
C11: Divogan | E11: 100 | G11: 45 | H11: en octobre | O11: Calcul de la prime
G12: intérêt | K12: Frais et courtage | O12: Valeur intrinsèque : | Q12: Sous-jacent - strike
C13: Oblig. Emotion | E13: 5000 | G13: 4.25 | H13: en décembre | K13: Actions | L13: 0.01185 | O13: Valeur temporelle : | Q13: 1% par mois restant
G14: Intérêts courus à l'achat et à la vente | K14: Obligations | L14: 0.00885 | Q14: + coef. volatilité
C15: Warrant BELL | E15: exercice fin | G15: Sous-jacent : | H15: Action Bell & Cie | P15: Type de warrant
C16: Warrant DIVO | E16: décembre | G16: Sous-jacent : | H16: Action Divogan | O16: Européen, échéance 31 décembre.
O17: Ces warrants peuvent être achetés et
O18: vendus pendant l'année, mais pas
O19: exercés. | P19: En cas de bénéfice, le
C20: VAD - Vente à découvert | O20: produit est versé cash comme un
O21: dividende le 31 décembre.
C22: Vente d'un nombre de titres plus
C23: grand que ce que l'on possède.
A25: zoom | B25: 78 | C25: Votre garantie vous permet jusqu'à
C26: CHF 50'000.- de ventes non couvertes.
C28: L'achat se fait automatiquement
C29: aux échéances suivants :
D30: avril
D31: août
D32: décembre
I33: Inventaire final
C34: Néanmoins, si à l'échéance vous n'êtes
C35: pas en mesure de vous exécuter, le | I35: Les titres sont évalués aux
C36: bouton emprunt vous offre un prêt | I36: cours moyen nov.- déc.
C37: unique pour continuer la partie.
I38: Les warrants s'exercent
C39: La deuxième fois, vous serez bloqué ! | I39: automatiquement le 31.12 en cas
I40: de profit.
I41: La prime est perdue dans tous
I42: les cas.

Sheet Portefeuille
E1: Légende : | H1: Portefeuille détaillé | Z1: =D3 -> Julius | AE1: TRUE
E2: Achats Ventes | Z2: =D21 -> Baer | AB2: 75 | AE2: FALSE | AH2: zoom | AJ2: 95
D3: =Accueil!L20 -> Julius | AC3: Ajustement colonnes
D4: Abeco | H4: Bell & Cie | L4: Comon | P4: Divogan | T4: Ob. Emotion | X4: Warrant BELL | AB4: Warrant DIVO
C6: Janvier | D6: ='Bureau Direction'!$AO$23 -> 0 | E6: =IF(D6=0,"","x") ->  | F6: =IF(D6=0,0,'Bureau Direction'!$AO$11) -> 0 | G6: =D6*F6*-1 -> 0 | H6: ='Bureau Direction'!$AO$24 -> 0 | I6: =IF(H6=0,"","x") ->  | J6: =IF(H6=0,0,'Bureau Direction'!$AO$12) -> 0 | K6: =H6*J6*-1 -> 0 | L6: ='Bureau Direction'!$AO$25 -> 0 | M6: =IF(L6=0,"","x") ->  | N6: =IF(L6=0,0,'Bureau Direction'!$AO$13) -> 0 | O6: =L6*N6*-1 -> 0 | P6: ='Bureau Direction'!$AO$26 -> 0 | Q6: =IF(P6=0,"","x") ->  | R6: =IF(P6=0,0,'Bureau Direction'!$AO$14) -> 0 | S6: =P6*R6*-1 -> 0 | T6: ='Bureau Direction'!$AO$27 -> 0 | U6: =IF(T6=0,"","x") ->  | V6: =IF(T6=0,0,'Bureau Direction'!$AO$15) -> 0 | W6: =T6*V6*-1 -> 0 | X6: ='Bureau Direction'!$AO$28 -> 0 | Y6: =IF(X6=0,"","x") ->  | Z6: =IF(X6=0,0,'Bureau Direction'!$AO$88) -> 0 | AA6: =X6*Z6*-1 -> 0 | AB6: ='Bureau Direction'!$AO$29 -> 0 | AC6: =IF(AB6=0,"","x") ->  | AD6: =IF(AB6=0,0,'Bureau Direction'!$AO$89) -> 0 | AE6: =AB6*AD6*-1 -> 0 | AG6: ='Bureau Direction'!N13 -> Abeco | AH6: ='Bureau Direction'!R13 -> 16
C7: Février | D7: ='Bureau Direction'!$AP$23 -> 0 | E7: =IF(D7=0,"","x") ->  | F7: =IF(D7=0,0,'Bureau Direction'!$AP$11) -> 0 | G7: =D7*F7*-1 -> 0 | H7: ='Bureau Direction'!$AP$24 -> 0 | J7: =IF(H7=0,0,'Bureau Direction'!$AP$12) -> 0 | K7: =H7*J7*-1 -> 0 | L7: ='Bureau Direction'!$AP$25 -> 0 | M7: =IF(L7=0,"","x") ->  | N7: =IF(L7=0,0,'Bureau Direction'!$AP$13) -> 0 | O7: =L7*N7*-1 -> 0 | P7: ='Bureau Direction'!$AP$26 -> 0 | Q7: =IF(P7=0,"","x") ->  | R7: =IF(P7=0,0,'Bureau Direction'!$AP$14) -> 0 | S7: =P7*R7*-1 -> 0 | T7: ='Bureau Direction'!$AP$27 -> 0 | U7: =IF(T7=0,"","x") ->  | V7: =IF(T7=0,0,'Bureau Direction'!$AP$15) -> 0 | W7: =T7*V7*-1 -> 0 | X7: ='Bureau Direction'!$AP$28 -> 0 | Z7: =IF(X7=0,0,'Bureau Direction'!$AP$88) -> 0 | AA7: =X7*Z7*-1 -> 0 | AB7: ='Bureau Direction'!$AP$29 -> 0 | AC7: =IF(AB7=0,"","x") ->  | AD7: =IF(AB7=0,0,'Bureau Direction'!$AP$89) -> 0 | AE7: =AB7*AD7*-1 -> 0 | AG7: ='Bureau Direction'!N14 -> Bell & Cie | AH7: ='Bureau Direction'!R14 -> 2354
C8: Mars | D8: ='Bureau Direction'!$AQ$23 -> 0 | F8: =IF(D8=0,0,'Bureau Direction'!$AQ$11) -> 0 | G8: 0 | H8: ='Bureau Direction'!$AQ$24 -> 0 | J8: =IF(H8=0,0,'Bureau Direction'!$AQ$12) -> 0 | K8: 0 | L8: ='Bureau Direction'!$AQ$25 -> 0 | N8: =IF(L8=0,0,'Bureau Direction'!$AQ$13) -> 0 | O8: 0 | P8: ='Bureau Direction'!$AQ$26 -> 0 | R8: =IF(P8=0,0,'Bureau Direction'!$AQ$14) -> 0 | S8: 0 | T8: ='Bureau Direction'!$AQ$27 -> 0 | V8: =IF(T8=0,0,'Bureau Direction'!$AQ$15) -> 0 | W8: 0 | X8: ='Bureau Direction'!$AQ$28 -> 0 | Z8: =IF(X8=0,0,'Bureau Direction'!$AQ$88) -> 0 | AA8: 0 | AB8: ='Bureau Direction'!$AQ$29 -> 0 | AD8: =IF(AB8=0,0,'Bureau Direction'!$AQ$89) -> 0 | AE8: 0 | AG8: ='Bureau Direction'!N15 -> Comon | AH8: ='Bureau Direction'!R15 -> 158
C9: Avril | D9: ='Bureau Direction'!$AR$23 -> 0 | F9: =IF(D9=0,0,'Bureau Direction'!$AR$11) -> 0 | G9: 0 | H9: ='Bureau Direction'!$AR$24 -> 0 | J9: =IF(H9=0,0,'Bureau Direction'!$AR$12) -> 0 | K9: 0 | L9: ='Bureau Direction'!$AR$25 -> 0 | N9: =IF(L9=0,0,'Bureau Direction'!$AR$13) -> 0 | O9: 0 | P9: ='Bureau Direction'!$AR$26 -> 0 | R9: =IF(P9=0,0,'Bureau Direction'!$AR$14) -> 0 | S9: 0 | T9: ='Bureau Direction'!$AR$27 -> 0 | V9: =IF(T9=0,0,'Bureau Direction'!$AR$15) -> 0 | W9: 0 | X9: ='Bureau Direction'!$AR$28 -> 0 | Z9: =IF(X9=0,0,'Bureau Direction'!$AR$88) -> 0 | AA9: 0 | AB9: ='Bureau Direction'!$AR$29 -> 0 | AD9: =IF(AB9=0,0,'Bureau Direction'!$AR$89) -> 0 | AE9: 0 | AG9: ='Bureau Direction'!N16 -> Divogan | AH9: ='Bureau Direction'!R16 -> 591
C10: Mai | D10: ='Bureau Direction'!$AS$23 -> 0 | F10: =IF(D10=0,0,'Bureau Direction'!$AS$11) -> 0 | G10: 0 | H10: ='Bureau Direction'!$AS$24 -> 0 | J10: =IF(H10=0,0,'Bureau Direction'!$AS$12) -> 0 | K10: 0 | L10: ='Bureau Direction'!$AS$25 -> 0 | N10: =IF(L10=0,0,'Bureau Direction'!$AS$13) -> 0 | O10: 0 | P10: ='Bureau Direction'!$AS$26 -> 0 | R10: =IF(P10=0,0,'Bureau Direction'!$AS$14) -> 0 | S10: 0 | T10: ='Bureau Direction'!$AS$27 -> 0 | V10: =IF(T10=0,0,'Bureau Direction'!$AS$15) -> 0 | W10: 0 | X10: ='Bureau Direction'!$AS$28 -> 0 | Z10: =IF(X10=0,0,'Bureau Direction'!$AS$88) -> 0 | AA10: 0 | AB10: ='Bureau Direction'!$AS$29 -> 0 | AD10: =IF(AB10=0,0,'Bureau Direction'!$AS$89) -> 0 | AE10: 0 | AG10: ='Bureau Direction'!N17 -> Oblig. Emotion | AH10: ='Bureau Direction'!R17 -> 5050
C11: Juin | D11: ='Bureau Direction'!$AT$23 -> 0 | F11: =IF(D11=0,0,'Bureau Direction'!$AT$11) -> 0 | G11: 0 | H11: ='Bureau Direction'!$AT$24 -> 0 | J11: =IF(H11=0,0,'Bureau Direction'!$AT$12) -> 0 | K11: 0 | L11: ='Bureau Direction'!$AT$25 -> 0 | N11: =IF(L11=0,0,'Bureau Direction'!$AT$13) -> 0 | O11: 0 | P11: ='Bureau Direction'!$AT$26 -> 0 | R11: =IF(P11=0,0,'Bureau Direction'!$AT$14) -> 0 | S11: 0 | T11: ='Bureau Direction'!$AT$27 -> 0 | V11: =IF(T11=0,0,'Bureau Direction'!$AT$15) -> 0 | W11: 0 | X11: ='Bureau Direction'!$AT$28 -> 0 | Z11: =IF(X11=0,0,'Bureau Direction'!$AT$88) -> 0 | AA11: 0 | AB11: ='Bureau Direction'!$AT$29 -> 0 | AD11: =IF(AB11=0,0,'Bureau Direction'!$AT$89) -> 0 | AE11: 0 | AG11: ='Bureau Direction'!N18 -> Warrant BELL | AH11: ='Bureau Direction'!R18 -> 71.4
C12: Juillet | D12: ='Bureau Direction'!$AU$23 -> 0 | F12: =IF(D12=0,0,'Bureau Direction'!$AU$11) -> 0 | G12: 0 | H12: ='Bureau Direction'!$AU$24 -> 0 | J12: =IF(H12=0,0,'Bureau Direction'!$AU$12) -> 0 | K12: 0 | L12: ='Bureau Direction'!$AU$25 -> 0 | N12: =IF(L12=0,0,'Bureau Direction'!$AU$13) -> 0 | O12: 0 | P12: ='Bureau Direction'!$AU$26 -> 0 | R12: =IF(P12=0,0,'Bureau Direction'!$AU$14) -> 0 | S12: 0 | T12: ='Bureau Direction'!$AU$27 -> 0 | V12: =IF(T12=0,0,'Bureau Direction'!$AU$15) -> 0 | W12: 0 | X12: ='Bureau Direction'!$AU$28 -> 0 | Z12: =IF(X12=0,0,'Bureau Direction'!$AU$88) -> 0 | AA12: 0 | AB12: ='Bureau Direction'!$AU$29 -> 0 | AD12: =IF(AB12=0,0,'Bureau Direction'!$AU$89) -> 0 | AE12: 0 | AG12: ='Bureau Direction'!N19 -> Warrant DIVO | AH12: ='Bureau Direction'!R19 -> 36.96666667
C13: Août | D13: ='Bureau Direction'!$AV$23 -> 0 | F13: =IF(D13=0,0,'Bureau Direction'!$AV$11) -> 0 | G13: 0 | H13: ='Bureau Direction'!$AV$24 -> 0 | J13: =IF(H13=0,0,'Bureau Direction'!$AV$12) -> 0 | K13: 0 | L13: ='Bureau Direction'!$AV$25 -> 0 | N13: =IF(L13=0,0,'Bureau Direction'!$AV$13) -> 0 | O13: 0 | P13: ='Bureau Direction'!$AV$26 -> 0 | R13: =IF(P13=0,0,'Bureau Direction'!$AV$14) -> 0 | S13: 0 | T13: ='Bureau Direction'!$AV$27 -> 0 | V13: =IF(T13=0,0,'Bureau Direction'!$AV$15) -> 0 | W13: 0 | X13: ='Bureau Direction'!$AV$28 -> 0 | Z13: =IF(X13=0,0,'Bureau Direction'!$AV$88) -> 0 | AA13: 0 | AB13: ='Bureau Direction'!$AV$29 -> 0 | AD13: =IF(AB13=0,0,'Bureau Direction'!$AV$89) -> 0 | AE13: 0
C14: Septembre | D14: ='Bureau Direction'!$AW$23 -> 0 | F14: =IF(D14=0,0,'Bureau Direction'!$AW$11) -> 0 | G14: 0 | H14: ='Bureau Direction'!$AW$24 -> 0 | J14: =IF(H14=0,0,'Bureau Direction'!$AW$12) -> 0 | K14: 0 | L14: ='Bureau Direction'!$AW$25 -> 0 | N14: =IF(L14=0,0,'Bureau Direction'!$AW$13) -> 0 | O14: 0 | P14: ='Bureau Direction'!$AW$26 -> 0 | R14: =IF(P14=0,0,'Bureau Direction'!$AW$14) -> 0 | S14: 0 | T14: ='Bureau Direction'!$AW$27 -> 0 | V14: =IF(T14=0,0,'Bureau Direction'!$AW$15) -> 0 | W14: 0 | X14: ='Bureau Direction'!$AW$28 -> 0 | Z14: =IF(X14=0,0,'Bureau Direction'!$AW$88) -> 0 | AA14: 0 | AB14: ='Bureau Direction'!$AW$29 -> 0 | AD14: =IF(AB14=0,0,'Bureau Direction'!$AW$89) -> 0 | AE14: 0
C15: Octobre | D15: ='Bureau Direction'!$AX$23 -> 0 | F15: =IF(D15=0,0,'Bureau Direction'!$AX$11) -> 0 | G15: 0 | H15: ='Bureau Direction'!$AX$24 -> 0 | J15: =IF(H15=0,0,'Bureau Direction'!$AX$12) -> 0 | K15: 0 | L15: ='Bureau Direction'!$AX$25 -> 0 | N15: =IF(L15=0,0,'Bureau Direction'!$AX$13) -> 0 | O15: 0 | P15: ='Bureau Direction'!$AX$26 -> 0 | R15: =IF(P15=0,0,'Bureau Direction'!$AX$14) -> 0 | S15: 0 | T15: ='Bureau Direction'!$AX$27 -> 0 | V15: =IF(T15=0,0,'Bureau Direction'!$AX$15) -> 0 | W15: 0 | X15: ='Bureau Direction'!$AX$28 -> 0 | Z15: =IF(X15=0,0,'Bureau Direction'!$AX$88) -> 0 | AA15: 0 | AB15: ='Bureau Direction'!$AX$29 -> 0 | AD15: =IF(AB15=0,0,'Bureau Direction'!$AX$89) -> 0 | AE15: 0
C16: Novembre | D16: ='Bureau Direction'!$AY$23 -> 0 | F16: =IF(D16=0,0,'Bureau Direction'!$AY$11) -> 0 | G16: 0 | H16: ='Bureau Direction'!$AY$24 -> 0 | J16: =IF(H16=0,0,'Bureau Direction'!$AY$12) -> 0 | K16: 0 | L16: ='Bureau Direction'!$AY$25 -> 0 | N16: =IF(L16=0,0,'Bureau Direction'!$AY$13) -> 0 | O16: 0 | P16: ='Bureau Direction'!$AY$26 -> 0 | R16: =IF(P16=0,0,'Bureau Direction'!$AY$14) -> 0 | S16: 0 | T16: ='Bureau Direction'!$AY$27 -> 0 | V16: =IF(T16=0,0,'Bureau Direction'!$AY$15) -> 0 | W16: 0 | X16: ='Bureau Direction'!$AY$28 -> 0 | Z16: =IF(X16=0,0,'Bureau Direction'!$AY$88) -> 0 | AA16: 0 | AB16: ='Bureau Direction'!$AY$29 -> 0 | AD16: =IF(AB16=0,0,'Bureau Direction'!$AY$89) -> 0 | AE16: 0
C17: Décembre | D17: ='Bureau Direction'!$AZ$23 -> 0 | F17: =IF(D17=0,0,'Bureau Direction'!$AZ$11) -> 0 | G17: 0 | H17: ='Bureau Direction'!$AZ$24 -> 0 | J17: =IF(H17=0,0,'Bureau Direction'!$AZ$12) -> 0 | K17: 0 | L17: ='Bureau Direction'!$AZ$25 -> 0 | N17: =IF(L17=0,0,'Bureau Direction'!$AZ$13) -> 0 | O17: 0 | P17: ='Bureau Direction'!$AZ$26 -> 0 | R17: =IF(P17=0,0,'Bureau Direction'!$AZ$14) -> 0 | S17: 0 | T17: ='Bureau Direction'!$AZ$27 -> 0 | V17: =IF(T17=0,0,'Bureau Direction'!$AZ$15) -> 0 | W17: 0 | X17: ='Bureau Direction'!$AZ$28 -> 0 | Z17: =IF(X17=0,0,'Bureau Direction'!$AZ$88) -> 0 | AA17: 0 | AB17: ='Bureau Direction'!$AZ$29 -> 0 | AD17: =IF(AB17=0,0,'Bureau Direction'!$AZ$89) -> 0 | AE17: 0 | AG17: Ventes - achats
C18: ventes-achats | G18: =SUM(G6:G17) -> 0 | K18: =SUM(K6:K17) -> 0 | O18: =SUM(O6:O17) -> 0 | S18: =SUM(S6:S17) -> 0 | W18: =SUM(W6:W17) -> 0 | AA18: =SUM(AA6:AA17) -> 0 | AE18: =SUM(AE6:AE17) -> 0 | AG18: =G18+K18+O18+S18+W18+AA18+AE18 -> 0
C19: Inventaire | D19: =SUM(D6:D17) -> 0 | E19: =IF(D19=0,"","x") ->  | F19: =IF(D19=0,0,AH6) -> 0 | G19: =D19*F19 -> 0 | H19: =SUM(H6:H17) -> 0 | I19: =IF(H19=0,"","x") ->  | J19: =IF(H19=0,0,AH7) -> 0 | K19: =H19*J19 -> 0 | L19: =SUM(L6:L17) -> 0 | M19: =IF(L19=0,"","x") ->  | N19: =IF(L19=0,0,AH8) -> 0 | O19: =L19*N19 -> 0 | P19: =SUM(P6:P17) -> 0 | Q19: =IF(P19=0,"","x") ->  | R19: =IF(P19=0,0,AH9) -> 0 | S19: =P19*R19 -> 0 | T19: =SUM(T6:T17) -> 0 | U19: =IF(T19=0,"","x") ->  | V19: =IF(T19=0,0,AH10) -> 0 | W19: =T19*V19 -> 0 | X19: Total des primes : | AB19: =AA18+AE18 -> 0
D21: =Accueil!L21 -> Baer
D22: Abeco | H22: Bell & Cie | L22: Comon | P22: Divogan | T22: Ob. Emotion | X22: Warrant BELL | AB22: Warrant DIVO
C24: Janvier | D24: ='Bureau Direction'!$AO$35 -> 0 | E24: =IF(D24=0,"","x") ->  | F24: =IF(D24=0,0,'Bureau Direction'!$AO$11) -> 0 | G24: =D24*F24*-1 -> 0 | H24: ='Bureau Direction'!$AO$36 -> 0 | I24: =IF(H24=0,"","x") ->  | J24: =IF(H24=0,0,'Bureau Direction'!$AO$12) -> 0 | K24: =H24*J24*-1 -> 0 | L24: ='Bureau Direction'!$AO$37 -> 0 | M24: =IF(L24=0,"","x") ->  | N24: =IF(L24=0,0,'Bureau Direction'!$AO$13) -> 0 | O24: =L24*N24*-1 -> 0 | P24: ='Bureau Direction'!$AO$38 -> 0 | Q24: =IF(P24=0,"","x") ->  | R24: =IF(P24=0,0,'Bureau Direction'!$AO$14) -> 0 | S24: =P24*R24*-1 -> 0 | T24: ='Bureau Direction'!$AO$39 -> 0 | U24: =IF(T24=0,"","x") ->  | V24: =IF(T24=0,0,'Bureau Direction'!$AO$15) -> 0 | W24: =T24*V24*-1 -> 0 | X24: ='Bureau Direction'!$AO$40 -> 0 | Y24: =IF(X24=0,"","x") ->  | Z24: =IF(X24=0,0,'Bureau Direction'!$AO$92) -> 0 | AA24: =X24*Z24*-1 -> 0 | AB24: ='Bureau Direction'!$AO$41 -> 0 | AC24: =IF(AB24=0,"","x") ->  | AD24: =IF(AB24=0,0,'Bureau Direction'!$AO$93) -> 0 | AE24: =AB24*AD24*-1 -> 0
C25: Février | D25: ='Bureau Direction'!$AP$35 -> 0 | E25: =IF(D25=0,"","x") ->  | F25: =IF(D25=0,0,'Bureau Direction'!$AP$11) -> 0 | G25: =D25*F25*-1 -> 0 | H25: ='Bureau Direction'!$AP$36 -> 0 | J25: =IF(H25=0,0,'Bureau Direction'!$AP$12) -> 0 | K25: =H25*J25*-1 -> 0 | L25: ='Bureau Direction'!$AP$37 -> 0 | M25: =IF(L25=0,"","x") ->  | N25: =IF(L25=0,0,'Bureau Direction'!$AP$13) -> 0 | O25: =L25*N25*-1 -> 0 | P25: ='Bureau Direction'!$AP$38 -> 0 | Q25: =IF(P25=0,"","x") ->  | R25: =IF(P25=0,0,'Bureau Direction'!$AP$14) -> 0 | S25: =P25*R25*-1 -> 0 | T25: ='Bureau Direction'!$AP$39 -> 0 | U25: =IF(T25=0,"","x") ->  | V25: =IF(T25=0,0,'Bureau Direction'!$AP$15) -> 0 | W25: =T25*V25*-1 -> 0 | X25: ='Bureau Direction'!$AP$40 -> 0 | Z25: =IF(X25=0,0,'Bureau Direction'!$AP$92) -> 0 | AA25: =X25*Z25*-1 -> 0 | AB25: ='Bureau Direction'!$AP$41 -> 0 | AC25: =IF(AB25=0,"","x") ->  | AD25: =IF(AB25=0,0,'Bureau Direction'!$AP$93) -> 0 | AE25: =AB25*AD25*-1 -> 0
C26: Mars | D26: ='Bureau Direction'!$AQ$35 -> 0 | F26: =IF(D26=0,0,'Bureau Direction'!$AQ$11) -> 0 | G26: 0 | H26: ='Bureau Direction'!$AQ$36 -> 0 | J26: =IF(H26=0,0,'Bureau Direction'!$AQ$12) -> 0 | K26: 0 | L26: ='Bureau Direction'!$AQ$37 -> 0 | N26: =IF(L26=0,0,'Bureau Direction'!$AQ$13) -> 0 | O26: 0 | P26: ='Bureau Direction'!$AQ$38 -> 0 | R26: =IF(P26=0,0,'Bureau Direction'!$AQ$14) -> 0 | S26: 0 | T26: ='Bureau Direction'!$AQ$39 -> 0 | V26: =IF(T26=0,0,'Bureau Direction'!$AQ$15) -> 0 | W26: 0 | X26: ='Bureau Direction'!$AQ$40 -> 0 | Z26: =IF(X26=0,0,'Bureau Direction'!$AQ$92) -> 0 | AA26: 0 | AB26: ='Bureau Direction'!$AQ$41 -> 0 | AD26: =IF(AB26=0,0,'Bureau Direction'!$AQ$93) -> 0 | AE26: 0
C27: Avril | D27: ='Bureau Direction'!$AR$35 -> 0 | F27: =IF(D27=0,0,'Bureau Direction'!$AR$11) -> 0 | G27: 0 | H27: ='Bureau Direction'!$AR$36 -> 0 | J27: =IF(H27=0,0,'Bureau Direction'!$AR$12) -> 0 | K27: 0 | L27: ='Bureau Direction'!$AR$37 -> 0 | N27: =IF(L27=0,0,'Bureau Direction'!$AR$13) -> 0 | O27: 0 | P27: ='Bureau Direction'!$AR$38 -> 0 | R27: =IF(P27=0,0,'Bureau Direction'!$AR$14) -> 0 | S27: 0 | T27: ='Bureau Direction'!$AR$39 -> 0 | V27: =IF(T27=0,0,'Bureau Direction'!$AR$15) -> 0 | W27: 0 | X27: ='Bureau Direction'!$AR$40 -> 0 | Z27: =IF(X27=0,0,'Bureau Direction'!$AR$92) -> 0 | AA27: 0 | AB27: ='Bureau Direction'!$AR$41 -> 0 | AD27: =IF(AB27=0,0,'Bureau Direction'!$AR$93) -> 0 | AE27: 0
C28: Mai | D28: ='Bureau Direction'!$AS$35 -> 0 | F28: =IF(D28=0,0,'Bureau Direction'!$AS$11) -> 0 | G28: 0 | H28: ='Bureau Direction'!$AS$36 -> 0 | J28: =IF(H28=0,0,'Bureau Direction'!$AS$12) -> 0 | K28: 0 | L28: ='Bureau Direction'!$AS$37 -> 0 | N28: =IF(L28=0,0,'Bureau Direction'!$AS$13) -> 0 | O28: 0 | P28: ='Bureau Direction'!$AS$38 -> 0 | R28: =IF(P28=0,0,'Bureau Direction'!$AS$14) -> 0 | S28: 0 | T28: ='Bureau Direction'!$AS$39 -> 0 | V28: =IF(T28=0,0,'Bureau Direction'!$AS$15) -> 0 | W28: 0 | X28: ='Bureau Direction'!$AS$40 -> 0 | Z28: =IF(X28=0,0,'Bureau Direction'!$AS$92) -> 0 | AA28: 0 | AB28: ='Bureau Direction'!$AS$41 -> 0 | AD28: =IF(AB28=0,0,'Bureau Direction'!$AS$93) -> 0 | AE28: 0
C29: Juin | D29: ='Bureau Direction'!$AT$35 -> 0 | F29: =IF(D29=0,0,'Bureau Direction'!$AT$11) -> 0 | G29: 0 | H29: ='Bureau Direction'!$AT$36 -> 0 | J29: =IF(H29=0,0,'Bureau Direction'!$AT$12) -> 0 | K29: 0 | L29: ='Bureau Direction'!$AT$37 -> 0 | N29: =IF(L29=0,0,'Bureau Direction'!$AT$13) -> 0 | O29: 0 | P29: ='Bureau Direction'!$AT$38 -> 0 | R29: =IF(P29=0,0,'Bureau Direction'!$AT$14) -> 0 | S29: 0 | T29: ='Bureau Direction'!$AT$39 -> 0 | V29: =IF(T29=0,0,'Bureau Direction'!$AT$15) -> 0 | W29: 0 | X29: ='Bureau Direction'!$AT$40 -> 0 | Z29: =IF(X29=0,0,'Bureau Direction'!$AT$92) -> 0 | AA29: 0 | AB29: ='Bureau Direction'!$AT$41 -> 0 | AD29: =IF(AB29=0,0,'Bureau Direction'!$AT$93) -> 0 | AE29: 0
C30: Juillet | D30: ='Bureau Direction'!$AU$35 -> 0 | F30: =IF(D30=0,0,'Bureau Direction'!$AU$11) -> 0 | G30: 0 | H30: ='Bureau Direction'!$AU$36 -> 0 | J30: =IF(H30=0,0,'Bureau Direction'!$AU$12) -> 0 | K30: 0 | L30: ='Bureau Direction'!$AU$37 -> 0 | N30: =IF(L30=0,0,'Bureau Direction'!$AU$13) -> 0 | O30: 0 | P30: ='Bureau Direction'!$AU$38 -> 0 | R30: =IF(P30=0,0,'Bureau Direction'!$AU$14) -> 0 | S30: 0 | T30: ='Bureau Direction'!$AU$39 -> 0 | V30: =IF(T30=0,0,'Bureau Direction'!$AU$15) -> 0 | W30: 0 | X30: ='Bureau Direction'!$AU$40 -> 0 | Z30: =IF(X30=0,0,'Bureau Direction'!$AU$92) -> 0 | AA30: 0 | AB30: ='Bureau Direction'!$AU$41 -> 0 | AD30: =IF(AB30=0,0,'Bureau Direction'!$AU$93) -> 0 | AE30: 0
C31: Août | D31: ='Bureau Direction'!$AV$35 -> 0 | F31: =IF(D31=0,0,'Bureau Direction'!$AV$11) -> 0 | G31: 0 | H31: ='Bureau Direction'!$AV$36 -> 0 | J31: =IF(H31=0,0,'Bureau Direction'!$AV$12) -> 0 | K31: 0 | L31: ='Bureau Direction'!$AV$37 -> 0 | N31: =IF(L31=0,0,'Bureau Direction'!$AV$13) -> 0 | O31: 0 | P31: ='Bureau Direction'!$AV$38 -> 0 | R31: =IF(P31=0,0,'Bureau Direction'!$AV$14) -> 0 | S31: 0 | T31: ='Bureau Direction'!$AV$39 -> 0 | V31: =IF(T31=0,0,'Bureau Direction'!$AV$15) -> 0 | W31: 0 | X31: ='Bureau Direction'!$AV$40 -> 0 | Z31: =IF(X31=0,0,'Bureau Direction'!$AV$92) -> 0 | AA31: 0 | AB31: ='Bureau Direction'!$AV$41 -> 0 | AD31: =IF(AB31=0,0,'Bureau Direction'!$AV$93) -> 0 | AE31: 0
C32: Septembre | D32: ='Bureau Direction'!$AW$35 -> 0 | F32: =IF(D32=0,0,'Bureau Direction'!$AW$11) -> 0 | G32: 0 | H32: ='Bureau Direction'!$AW$36 -> 0 | J32: =IF(H32=0,0,'Bureau Direction'!$AW$12) -> 0 | K32: 0 | L32: ='Bureau Direction'!$AW$37 -> 0 | N32: =IF(L32=0,0,'Bureau Direction'!$AW$13) -> 0 | O32: 0 | P32: ='Bureau Direction'!$AW$38 -> 0 | R32: =IF(P32=0,0,'Bureau Direction'!$AW$14) -> 0 | S32: 0 | T32: ='Bureau Direction'!$AW$39 -> 0 | V32: =IF(T32=0,0,'Bureau Direction'!$AW$15) -> 0 | W32: 0 | X32: ='Bureau Direction'!$AW$40 -> 0 | Z32: =IF(X32=0,0,'Bureau Direction'!$AW$92) -> 0 | AA32: 0 | AB32: ='Bureau Direction'!$AW$41 -> 0 | AD32: =IF(AB32=0,0,'Bureau Direction'!$AW$93) -> 0 | AE32: 0
C33: Octobre | D33: ='Bureau Direction'!$AX$35 -> 0 | F33: =IF(D33=0,0,'Bureau Direction'!$AX$11) -> 0 | G33: 0 | H33: ='Bureau Direction'!$AX$36 -> 0 | J33: =IF(H33=0,0,'Bureau Direction'!$AX$12) -> 0 | K33: 0 | L33: ='Bureau Direction'!$AX$37 -> 0 | N33: =IF(L33=0,0,'Bureau Direction'!$AX$13) -> 0 | O33: 0 | P33: ='Bureau Direction'!$AX$38 -> 0 | R33: =IF(P33=0,0,'Bureau Direction'!$AX$14) -> 0 | S33: 0 | T33: ='Bureau Direction'!$AX$39 -> 0 | V33: =IF(T33=0,0,'Bureau Direction'!$AX$15) -> 0 | W33: 0 | X33: ='Bureau Direction'!$AX$40 -> 0 | Z33: =IF(X33=0,0,'Bureau Direction'!$AX$92) -> 0 | AA33: 0 | AB33: ='Bureau Direction'!$AX$41 -> 0 | AD33: =IF(AB33=0,0,'Bureau Direction'!$AX$93) -> 0 | AE33: 0
C34: Novembre | D34: ='Bureau Direction'!$AY$35 -> 0 | F34: =IF(D34=0,0,'Bureau Direction'!$AY$11) -> 0 | G34: 0 | H34: ='Bureau Direction'!$AY$36 -> 0 | J34: =IF(H34=0,0,'Bureau Direction'!$AY$12) -> 0 | K34: 0 | L34: ='Bureau Direction'!$AY$37 -> 0 | N34: =IF(L34=0,0,'Bureau Direction'!$AY$13) -> 0 | O34: 0 | P34: ='Bureau Direction'!$AY$38 -> 0 | R34: =IF(P34=0,0,'Bureau Direction'!$AY$14) -> 0 | S34: 0 | T34: ='Bureau Direction'!$AY$39 -> 0 | V34: =IF(T34=0,0,'Bureau Direction'!$AY$15) -> 0 | W34: 0 | X34: ='Bureau Direction'!$AY$40 -> 0 | Z34: =IF(X34=0,0,'Bureau Direction'!$AY$92) -> 0 | AA34: 0 | AB34: ='Bureau Direction'!$AY$41 -> 0 | AD34: =IF(AB34=0,0,'Bureau Direction'!$AY$93) -> 0 | AE34: 0
C35: Décembre | D35: ='Bureau Direction'!$AZ$35 -> 0 | F35: =IF(D35=0,0,'Bureau Direction'!$AZ$11) -> 0 | G35: 0 | H35: ='Bureau Direction'!$AZ$36 -> 0 | J35: =IF(H35=0,0,'Bureau Direction'!$AZ$12) -> 0 | K35: 0 | L35: ='Bureau Direction'!$AZ$37 -> 0 | N35: =IF(L35=0,0,'Bureau Direction'!$AZ$13) -> 0 | O35: 0 | P35: ='Bureau Direction'!$AZ$38 -> 0 | R35: =IF(P35=0,0,'Bureau Direction'!$AZ$14) -> 0 | S35: =P35*R35 -> 0 | T35: ='Bureau Direction'!$AZ$39 -> 0 | V35: =IF(T35=0,0,'Bureau Direction'!$AZ$15) -> 0 | W35: 0 | X35: ='Bureau Direction'!$AZ$40 -> 0 | Z35: =IF(X35=0,0,'Bureau Direction'!$AZ$92) -> 0 | AA35: 0 | AB35: ='Bureau Direction'!$AZ$41 -> 0 | AD35: =IF(AB35=0,0,'Bureau Direction'!$AZ$93) -> 0 | AE35: 0 | AG35: Ventes - achats
C36: ventes-achats | G36: =SUM(G24:G35) -> 0 | K36: =SUM(K24:K35) -> 0 | O36: =SUM(O24:O35) -> 0 | S36: =SUM(S24:S35) -> 0 | W36: =SUM(W24:W35) -> 0 | AA36: =SUM(AA24:AA35) -> 0 | AE36: =SUM(AE24:AE35) -> 0 | AG36: =G36+K36+O36+S36+W36+AA36+AE36 -> 0
C37: Inventaire | D37: =SUM(D24:D35) -> 0 | E37: =IF(D37=0,"","x") ->  | F37: =IF(D37=0,0,AH6) -> 0 | G37: =D37*F37 -> 0 | H37: =SUM(H24:H35) -> 0 | I37: =IF(H37=0,"","x") ->  | J37: =IF(H37=0,0,AH7) -> 0 | K37: =H37*J37 -> 0 | L37: =SUM(L24:L35) -> 0 | M37: =IF(L37=0,"","x") ->  | N37: =IF(L37=0,0,AH8) -> 0 | O37: =L37*N37 -> 0 | P37: =SUM(P24:P35) -> 0 | Q37: =IF(P37=0,"","x") ->  | R37: =IF(P37=0,0,AH9) -> 0 | S37: =P37*R37 -> 0 | T37: =SUM(T24:T35) -> 0 | U37: =IF(T37=0,"","x") ->  | V37: =IF(T37=0,0,AH10) -> 0 | W37: =T37*V37 -> 0 | X37: Total des primes : | AB37: =AA36+AE36 -> 0

Sheet Presse
O1: Entreprise no | P1: ='Bureau Direction'!AF9 -> Emprunt | Q1: Nom : | R1: =VLOOKUP(P1,'Bureau Direction'!AJ23:AN27,2) -> 0 | S1: Nb Employés | T1: ='Bureau Direction'!L4 -> 0 | Y1: Faillite : | Z1: =VLOOKUP(P1,Datavar,16) -> 
I2: Sommaire | O2: Commentaire no | P2: 1 | Q2: 4 | Y2: ='Bureau Direction'!H16 -> 0 | AI2: Journal, groupement des lignes
O3: Articles | P3: 1. Présentation | Q3: 2. La bourse | R3: 3. Les actions | S3: 4. Les obligations | T3: 5. Les futures | U3: 6. Les options | V3: 7. Les warrant | W3: 8. Les ventes à découvert | X3: 9. La tendance | Y3: 10. Stratégie
O4: largeur 21 svp | P4: 1 | Q4: 2 | R4: 3 | S4: 4 | T4: 5 | U4: 6 | V4: 7 | W4: 8 | X4: 9 | Y4: 10
O5: 0 | P5: SMAK-MARKET | Q5: LA BOURSE | R5: Les actions | S5: Les obligations | T5: Les futures | U5: Les options | V5: Les warrants | W5: VAD - Ventes à découvert | X5: La tendance | Y5: Stratégie | Z5: 1
E6: 0 | O6: 1 | P6: Un jeu de bourse | Q6: Confrontation entre l'offre et la demande | R6: Des titres de propriété | S6: Des titres de créance | T6: Contrats d'achat ou de vente à terme | U6: Achat ou vente d'un droit | V6: Une forme d'option à succès. | W6: Outils pour spéculer à la baisse | X6: Des indices pour nous guider | Y6: Comment se protéger dans une VAD ?
G7: 2 | O7: 2 | P7: S’initier à la bourse, sans risque de se ruiner, voici le but de ce jeu de simulation. Vous pouvez placer votre argent en « père de famille » sur des actions stables ou en obligations. Vous pouvez aussi « boursicoter » pour tenter des gains alléchants en multipliant les achats et les ventes des titres les plus volatils (dont l'amplitude des cours est importante). | Q7: Investir en bourse revient à acheter ou vendre des titres en fonction de ses objectifs (par exemple faire un profit rapide en prenant des risques ou avoir une épargne rentable sur le long terme). Au cours de chaque séance, une même valeur peut voir son cours fluctuer de façon importante. Tout dépend de la confrontation entre l'offre (les vendeurs) et la demande (les acheteurs) . | R7: Une action est une part du capital de l’entreprise. Ainsi, en devenant actionnaire, vous devenez co-propriétaire de la société. En contrepartie de l'achat d'actions, l'investisseur a des droits patrimoniaux comme le droit à une part de bénéfice (dividende) ainsi que le droit de souscription lors de l'émission de nouvelles actions et des droits sociaux comme le droit de vote aux Assemblées et un droit de contrôle. | S7: Une obligation est un titre représentatif d'une créance émise par l'Etat ou par une société privée ou parapublique. En contrepartie de son prêt, le souscripteur reçoit chaque année des intérêts qui peuvent être fixes, variables ou indexés. Les obligations sont définies par le nom de l'emprunteur, le taux d'intérêt, la date d'émission et la date de remboursement. | T7: Imaginons que vous êtes producteur de Blé. La récolte se fait en été, mais les ventes n'auront lieu qu'en automne. Le blé se traite aujourd'hui sur le marché au comptant à 1200 $ la tonne. Au prix actuel, vous savez combien vaut votre récolte; ce que vous ignorez, c'est le prix auquel vous pourrez vendre cette récolte dans 3 mois. Pour éviter de perdre de l'argent si les prix venaient à connaître une | U7: Une option donne à son acquéreur, moyennant le paiement d'une prime (ou prix de l'option appelé premium), le droit, et non l'obligation, d'acheter (option d'achat ou Call) ou de vendre (option de vente ou put), à un prix fixé à l'avance (prix d'exercice), une quantité déterminée d'un actif financier appelé actif sous-jacent (actions, devises, indices, contrats sur emprunt, etc...), | V7: Un warrant se définit comme | W7: La vente à découvert consiste à emprunter un titre à un intermédiaire financier pour le vendre sur le marché et le racheter à terme afin de le rendre à son propriétaire. Vous vendez des titres que vous n'avez pas dans l'espoir de les racheter à un cours inférieur Cette opération n'est lucrative que si le titre en question baisse entre la date de sa vente et celle de son rachat. La vente à découvert permet de spéculer à la baisse. | X7: Les lignes de tendances sont la loi de base de l'analyse technique. Quelque analyse que vous appliquiez, vous devrez d'abord positionner et étudier soigneusement vos lignes pour déceler le comportement d'un titre, savoir comment il évolue. | Y7: L'investisseur qui a vendu des actions à découvert peut se protéger d'une hausse des cours en achetant une option (ou un warrant) sur ces mêmes actions. Si le cours monte, il exercera son call. | AI7: =VLOOKUP(2,Articles,$P$2+1) -> S’initier à la bourse, sans risque de se ruiner, voici le but de ce jeu de simulation. Vous pouvez placer votre argent en « père de famille » sur des actions stables ou en obligations. Vous pouvez aussi « boursicoter » pour tenter des gains alléchants en multipliant les achats et les ventes des titres les plus volatils (dont l'amplitude des cours est importante). | AJ7: =VLOOKUP(15,Articles,$P$2+1) -> Mais, si les frissons de la spéculation vous attirent, alors jouez gros sur les opérations à découvert ou exploitez l’effet de levier des warrants. | AK7: =VLOOKUP(28,Articles,$P$2+1) -> Des guides en ligne sont à votre disposition chez:
C8: =VLOOKUP(0,Articles,P2+1) -> SMAK-MARKET | G8: =AK7&AK8&AK9&AK10&AK11&AK12&AK13&AK14&AK15&AK16&AK17&AK18&AK19 -> Des guides en ligne sont à votre disposition chez: www.edubourse.com www.abcbourse.com www.boursorama.com www.oddowarrants.fr | O8: 3 | V8: le droit d'acheter ou de vendre un actif financier dans | Y8: L'option d'achat constitue une protection efficace contre une fluctuation défavorable des cours puisqu'elle fixe le prix maximal que l'investisseur doit payer pour racheter ses actions. | AI8: =VLOOKUP(3,Articles,$P$2+1) ->  | AJ8: =VLOOKUP(16,Articles,$P$2+1) -> Les "futures" et les "options" sont d'autres instruments financiers à disposition des spéculateurs, mais ils ne sont pas présents dans ce jeu. | AK8: =VLOOKUP(29,Articles,$P$2+1) -> www.edubourse.com www.abcbourse.com www.boursorama.com www.oddowarrants.fr
O9: 4 | V9: des conditions de prix et de durée définies à l'avance. Ainsi, le call warrant donne le droit d'acheter un sous-jacent donné à un prix fixé (le prix d'exercice) jusqu'à une date donnée (l'échéance), et, le put warrant donne le droit de vendre à un prix fixé (le prix d'exercice) jusqu'à une date donnée (l'échéance) ce sous-jacent. | AI9: =VLOOKUP(4,Articles,$P$2+1) ->  | AJ9: =VLOOKUP(17,Articles,$P$2+1) -> Put, call, sous-jacent, strike…, voici quelques notions que vous devez maîtriser pour jouer les investisseurs ici ou dans la vie. | AK9: =VLOOKUP(30,Articles,$P$2+1) -> 
C10: =VLOOKUP(1,Articles,P2+1) -> Un jeu de bourse | O10: 5 | AI10: =VLOOKUP(5,Articles,$P$2+1) ->  | AJ10: =VLOOKUP(18,Articles,$P$2+1) ->  | AK10: =VLOOKUP(31,Articles,$P$2+1) -> 
C11: =AI7&AI8&AI9&AI10&AI11&AI12&AI13&AI14&AI15&AI16&AI17&AI18&AI19 -> S’initier à la bourse, sans risque de se ruiner, voici le but de ce jeu de simulation. Vous pouvez placer votre argent en « père de famille » sur des actions stables ou en obligations. Vous pouvez aussi « boursicoter » pour tenter des gains alléchants en multipliant les achats et les ventes des titres les plus volatils (dont l'amplitude des cours est importante). | E11: =AJ7&AJ8&AJ9&AJ10&AJ11&AJ12&AJ13&AJ14&AJ15&AJ16&AJ17&AJ18&AJ19 -> Mais, si les frissons de la spéculation vous attirent, alors jouez gros sur les opérations à découvert ou exploitez l’effet de levier des warrants. Les "futures" et les "options" sont d'autres instruments financiers à disposition des spéculateurs, mais ils ne sont pas présents dans ce jeu. Put, call, sous-jacent, strike…, voici quelques notions que vous devez maîtriser pour jouer les investisseurs ici ou dans la vie. | O11: 6 | AI11: =VLOOKUP(6,Articles,$P$2+1) ->  | AJ11: =VLOOKUP(19,Articles,$P$2+1) ->  | AK11: =VLOOKUP(32,Articles,$P$2+1) -> 
O12: 7 | AI12: =VLOOKUP(7,Articles,$P$2+1) ->  | AJ12: =VLOOKUP(20,Articles,$P$2+1) ->  | AK12: =VLOOKUP(33,Articles,$P$2+1) -> 
O13: 8 | AI13: =VLOOKUP(8,Articles,$P$2+1) ->  | AJ13: =VLOOKUP(21,Articles,$P$2+1) ->  | AK13: =VLOOKUP(34,Articles,$P$2+1) -> 
O14: 9 | AI14: =VLOOKUP(9,Articles,$P$2+1) ->  | AJ14: =VLOOKUP(22,Articles,$P$2+1) ->  | AK14: =VLOOKUP(35,Articles,$P$2+1) -> 
O15: 10 | AI15: =VLOOKUP(10,Articles,$P$2+1) ->  | AJ15: =VLOOKUP(23,Articles,$P$2+1) ->  | AK15: =VLOOKUP(36,Articles,$P$2+1) -> 
O16: 11 | AI16: =VLOOKUP(11,Articles,$P$2+1) ->  | AJ16: =VLOOKUP(24,Articles,$P$2+1) ->  | AK16: =VLOOKUP(37,Articles,$P$2+1) -> 
O17: 12 | AI17: =VLOOKUP(12,Articles,$P$2+1) ->  | AJ17: =VLOOKUP(25,Articles,$P$2+1) ->  | AK17: =VLOOKUP(38,Articles,$P$2+1) -> 
O18: 13 | AI18: =VLOOKUP(13,Articles,$P$2+1) ->  | AJ18: =VLOOKUP(26,Articles,$P$2+1) ->  | AK18: =VLOOKUP(39,Articles,$P$2+1) -> 
O19: 14 | AI19: =VLOOKUP(14,Articles,$P$2+1) ->  | AJ19: =VLOOKUP(27,Articles,$P$2+1) -> 
O20: 15 | P20: Mais, si les frissons de la spéculation vous attirent, alors jouez gros sur les opérations à découvert ou exploitez l’effet de levier des warrants. | Q20: . Le cours d'une valeur monte lorsque les investisseurs voulant acheter les titres de cette valeur sont plus nombreux que les vendeurs. Pour savoir quand vendre ou quand acheter une valeur, plusieurs éléments sont à prendre en compte : la santé financière de l'entreprise, son marché, ses produits, le contexte économique, son actualité, ses prévisions et son environnement. | R20: Le marché action est scindé en deux : le marché primaire et le marché secondaire. Le marché primaire est le lieu où sont émis les titres, c'est-à-dire vendus par l'entreprise. C'est sur ce marché que l'entreprise trouve ses sources de financement. Une fois vendue sur le marché primaire, l'action peut alors être échangée sur le marché secondaire incarné par la bourse. | S20: Coupon : | T20: chute inattendue, vous pouvez vous entendre aujourd'hui avec un acheteur pour lui vendre votre blé dans trois mois à un prix que vous fixerez dès maintenant. | U20: pendant une période définie par une date d'échéance. | V20: L'acheteur du warrant dispose donc d'un droit, qu'il a payé, sur le support. S'il décide d'exercer son droit, il peut acheter (call warrant) ou bien vendre (put warrant) le support au prix d'exercice, jusqu'à l'échéance. | W20: La VAD, est une opération SRD (Service de réglement différé), permettant de vendre à crédit des titres que l'on ne détient pas. | X20: Un indice permet d'évaluer l'état du marché grâce à un échantillon de valeurs représentatives. C'est ainsi un bon outil de comparaison pour évaluer les performances de son propre portefeuille. | Y20: La gourmandise est mauvaise conseillère en bourse. Mieux vaut souvent se contenter de prises de bénéfice modestes qu'attendre des produits fabuleux mais hypothétiques !
O21: 16 | P21: Les "futures" et les "options" sont d'autres instruments financiers à disposition des spéculateurs, mais ils ne sont pas présents dans ce jeu. | S21: Intérêts servis par une obligation. Le coupon couru représente les intérêts d'une obligation qui s'accumulent quotidiennement entre deux dates de versement. On parle de coupon échu ou de tombée de coupon lorsque l'émetteur verse les intérêts d'une obligation. | T21: Les "futures" sont des instruments financiers de la catégorie des contrats à terme. | V21: Un warrant est un produit négociable : l'acheteur de warrant peut s'en séparer à tout moment en le revendant en bourse. | W21: LES RISQUES : les ventes à découvert constituent une stratégie de placement très spéculative et très risquée car le montant de perte est illimité si le cours du titre s'envole. Cet outil doit donc être employé avec vigilance et ne pas représenter une part importante d'un portefeuille boursier.
O22: 17 | P22: Put, call, sous-jacent, strike…, voici quelques notions que vous devez maîtriser pour jouer les investisseurs ici ou dans la vie. | T22: En résumé, les "futures" sont des contrats à terme qui incorporent une obligation d'achat ou de vente d'un sous-jacent dans le futur. | U22: Comme les "futures", les options font partie de la famille des "produits dérivés". Mais dans le cas de l'option, les acheteurs n'ont pas à se soucier de trouver un vendeur car c'est une chambre de compensation qui joue le rôle de la contrepartie. | X22: Chaque place boursière a ses indices : | AI22: Titres
D23: =P2 -> 1 | G23: reuter | O23: 18 | X23: SMI Swiss Market Index - Dow Jones New York - NASDAQ New York - Nikkei Tokyo - CAC40 Paris - FTSE100 Londres - DAX Francfort. | AI23: =P3 -> 1. Présentation
O24: 19 | AI24: =Q3 -> 2. La bourse
B25: 75 | O25: 20 | AI25: =R3 -> 3. Les actions
O26: 21 | AI26: =S3 -> 4. Les obligations
C27: Consultez le lexique de Smak-Market ! | O27: 22 | AI27: =T3 -> 5. Les futures
O28: 23 | AI28: =U3 -> 6. Les options
O29: 24 | AI29: =V3 -> 7. Les warrant
I30: zoom | J30: 105 | O30: 25 | AI30: =W3 -> 8. Les ventes à découvert
O31: 26 | AI31: =X3 -> 9. La tendance
O32: 27 | AI32: =Y3 -> 10. Stratégie
O33: 28 | P33: Des guides en ligne sont à votre disposition chez: | Q33: Rôle de la Bourse : | R33: D'une certaine manière on peut dire que le marché primaire est le marché du neuf et le marché secondaire celui de l'occasion. | S33: Dans ce jeu, l'intérêt couru est calculé depuis le début de l'année, jusqu'à la fin du mois en cours (4 1/4% sur 5'000.-). Lors de l'achat d'une obligation EMOTION, l'intérêt couru est ajouté aux charges, à côté des frais de courtage. Lors de la vente, il est enregistré comme produit. | T33: Il n'y a pas de "futures" à disposition dans Smak-Market. Pour spéculer dans le futur, utilisez la vente à découvert ou le warrant. | U33: Américaine ou Européenne ? Si l'option peut être exercée à tout moment et ce jusqu'à l'échéance, on parle d'option à l'américaine. Dans le cas ou elle ne peut être exercée qu'à l'échéance, on parle d'option Européenne. | V33: Contrairement aux options normales, qui sont gérées par une caisse de compensation, les warrants sont des options standardisées fabriquées par des grandes Banques pour être vendues sur le marché comme de simples produits de consommation boursière. | W33: Dans ce jeu, il suffit de vendre une action que l'on n'a pas pour faire une vente à découvet. Le produit de la vente est bloqué en compte. L'achat se fait automatiquement aux dates de liquidation. (ler avril, ler août, ler décembre) | X33: Dans cette simulation, la tendance est donnée par un signe arithmétique à droite de la cote. Tendance à la hausse +, tendance à la baisse -, titre stable =, titre volatile + -. | Y33: Si les tendances exprimées ne semblent pas intéressantes pour le jeu, il est possible, avant de commencer la partie, de choisir une autre période en cliquant sur le livre *Cote" déposé dans la bibliothèque.
O34: 29 | P34: www.edubourse.com www.abcbourse.com www.boursorama.com www.oddowarrants.fr | Q34: Une société qui cherche des fonds a la possibilité d’augmenter son capital. La bourse, en trouvant des actionnaires est une chance unique pour les entreprises, et un formidable outil de placement pour les investisseurs. | X34: Le SMI (Smak Market Indice) donne la valeur moyenne des titres de ce jeu.
O35: 30
O36: 31
O37: 32
O38: 33
O39: 34
O40: 35
O41: 36
O42: 37
O43: 38
O44: 39
O45: 40
O46: 41
O47: 42
O48: 43

Sheet L
A1: Vocabulaire économique et boursier
A4: A | C4: à vue | D4: Immédiatement à la présentation d'un papier-valeur
C5: acceptation | D5: Signature du tiré sur un effet de change par laquelle il s'engage à payer le montant indiqué.
C6: accroche | D6: Titre d'un texte publicitaire souvent mis en valeur graphiquement. (Headline)
C7: acompte | D7: Versement d'une partie d'une somme due, à valoir sur le paiement final.
C8: acte | D8: Ecrit constatant légalement un fait.
C9: acte authentique | D9: Ecrit constatant légalement un fait et établi par un notaire
C10: acte de défaut de biens | D10: Document établissant, après la faillite, le montant non couvert d'une créance.
C11: actif | D11: Partie gauche du Bilan où sont énumérés tous les emplois non-consommés
C12: action | D12: Titre de copropriété qui donne à son détenteur (l'actionnaire) des droits patrimoniaux et sociaux sur une entreprise.
C13: adjudication | D13: Acte par lequel on attribue quelque chose (un bien ou des travaux) à quelqu'un.
C14: agencement | D14: Disposition, installation d'un magasin. (vitrines, mobilier, etc...)
C15: aliéner | D15: Fait de transmettre à une personne une propriété ou un droit.
C16: allouer | D16: Attribuer une somme d'argent à quelqu'un
C17: amortissement comptable | D17: Réduction de la valeur d'un poste du Bilan.
C18: amortissement financier | D18: Remboursement d'une dette.
C19: annuité | D19: Somme dépensée annuellement pour les intérêts et l'amortissement d'une dette.
C20: appointements | D20: Rétribution fixe pour un emploi régulier. (Ne s'emploie qu'au pluriel !)
C21: arbitrage | D21: Opération visant à tirer profit de la différence de cours du change existant à un moment donné entre plusieurs marchés
C22: argus | D22: Périodique publiant le prix moyen des voitures d'occasion
C23: artisan | D23: Celui qui exerce un métier manuel pour son propre compte
C24: assignation | D24: Versement postal par mandat de paiement.
C25: assolement | D25: Alternance des cultures d'un champ pour obtenir le maximum de rendement, sans épuiser le sol.
C26: autarcie | D26: Manière de vivre qui vise à se suffire à soi-même, sans faire appel à une aide extérieure.
C27: autochtone | D27: Originaire du pays où il vit.
C28: autofinancement | D28: Augmentation du capital de l'entreprise au moyen des bénéfices non distribués.
C29: aval | D29: cautionnement d'un tiers en faveur du tiré.
C30: avenant | D30: Acte additionnel modifiant un contrat.
A32: B | C32: bail | D32: Contrat par lequel le propriétaire d'un bien en cède la jouissance à une autre, moyennant un prix convenu.
C33: baissier | D33: Personne qui, à la Bourse, spécule sur la baisse.
C34: battre | D34: Action de créer des pièces de monnaie et des billets pour un pays.
C35: bénéfice brut | D35: Chiffre d'affaires net moins Prix de revient d'achat.
C36: bénéfice net | D36: Bénéfice brut moins les frais généraux et les frais de vente.
C37: bénéficiaire | D37: Celui qui pourra encaisser une lettre de change à l'échéance
C38: besoin | D38: Etat de privation qui se traduit par une sensation pénible d'insuffisance génératrice de désir.
C39: bien | D39: Produit qui sert à satisfaire les besoins
C40: bien-fonds | D40: Terme cadastral pour définir un bien immobilier (terre, maison).
C41: biennal | D41: Qui a lieu tous les deux ans.
C42: bilan | D42: Tableau résumant la situation de l'entreprise (ressources et emplois) à un moment donné.
C43: billet à ordre | D43: Papier-valeur par lequel le souscripteur s'engage à payer une certaine somme au bénéficiaire.
C44: bon poids | D44: Réduction accordée sur un poids brut pour tenir compte des pertes provenant de la vente au détail
C45: bordereau | D45: Relevé détaillé des éléments d'un décompte, d'un inventaire, d'une opération bancaire, etc.
C46: bourse | D46: Marché où se négocient les titres.
C47: Bretton Woods | D47: Ville américaine où furent signés des accords qui donnèrent naissance au FMI en 1944.
C48: brevet | D48: Titre délivré à un inventeur et qui lui assure le droit exclusif d'exploiter sa découverte.
C49: brûlis | D49: Portion de champs dont on a brûlé les herbes pour améliorer le sol.
C50: brut | D50: Tout compris, c'est-à-dire avant déduction.
C51: budget | D51: Evaluation prévisionnelle des recettes et des dépenses pour une période déterminée
A53: C | C53: c.i.f. | D53: L'assurance et les frais de transport sont compris dans le prix d'achat.
C54: cachet | D54: Revenu d'un artiste
C55: cambiste | D55: Courtier en devises
C56: call | D56: Droit d'acheter un titre à un prix fixé d'avance par contrat. (Contraire de put)
C57: cartel | D57: Convention passée entre plusieurs entreprises de la même branche
C58: cauris | D58: Petits coquillages utilisés jadis comme argent en Asie et en Afrique
C59: caution | D59: Personne qui s'engage à payer à la place d'une autre si celle-ci ne peut pas s'exécuter.
C60: cédule | D60: Papier-valeur établi par un notaire lors de la constitution d'une hypothèque.
C61: certain | D61: Cotation qui indique la quantité de monnaie étrangère pour 1 unité nationale
C62: change | D62: Opération qui consiste à échanger une monnaie d'un pays contre une autre d'un autre pays.
C63: charges | D63: Ce qui oblige à des dépenses. Frais que l'entreprise doit supporter pour exercer son activité.
C64: chèque | D64: Papier-valeur donnant l'ordre à une banque de payer à vue, une somme déterminée à la personne désignée.
C65: chiffre d'affaires | D65: Quantité vendue au prix de vente. Total des ventes.
C66: clientèle | D66: Bien immatériel représentant la réputation d'une entreprise et pouvant être négocié
C67: clôture | D67: bouclement des comptes à une date donnée
C68: clôturer | D68: Tirer le solde d'un compte par différence entre débit et crédit.
C69: code | D69: Ouvrages où sont regroupés les lois selon leur nature.
C70: commission | D70: Somme due à un courtier ou à un vendeur en fonction de son chiffre d'affaires.
C71: comptant | D71: avec paiement immédiat
C72: compte courant | D72: tableau dans lequel on inscrit les opérations financières entre deux personnes ou deux entreprises.
C73: compte d'exploitation | D73: Compte de résultat intermédiaire centralisateur des charges et produits de l'activité principale de l'entreprise
C74: concepteur | D74: Celui qui propose des idées ou des projets pour la publicité
C75: concurrence | D75: Compétition entre plusieurs personnes ou plusieurs entreprises visant les mêmes avantages.
C76: concussion | D76: Malversation dans l'exercice d'une fonction publique.
C77: connaissement | D77: Lettre de transport maritime possédant le caractère d'un papier-valeur.
C78: consentir | D78: Accepter qu'une chose se fasse, accorder un avantage à quelqu'un.
C79: consommation | D79: Usure ou destruction d'un bien ou utilisation d'un service pour satisfaire des besoins.
C80: consomptible | D80: Dont on ne peut se servir sans le détruire.
C81: contrat | D81: acte juridique par lequel une ou plusieurs personnes s'obligent envers une ou plusieurs autres.
C82: contribuable | D82: Personne assujettie au paiement d'un impôt.
C83: convertible | D83: Adjectif qui qualifie une monnaie que l'on peut échanger contre de l'or.
C84: corporation | D84: Ensemble des personnes exerçant la même profession
C85: cote | D85: Liste des monnaies étrangères et de leur valeur par rapport à une monnaie donnée.
C86: cote | D86: Liste des cours des actions et obligations pour une bourse donnée.
C87: coulage | D87: Réduction accordée sur un poids brut pour tenir compte des pertes éventuelles dues aux manipulation de la marchandise.
C88: coupon | D88: Pièce donnant droit au dividende d'une action.
C89: couronne | D89: Monnaie des pays scandinaves.
C90: cours | D90: Prix d'une monnaie étrangère ou d'un titre à la bourse
C91: courtage | D91: Commission, rémunération du courtier.
C92: courtier | D92: Commerçant dont l'activité consiste à mettre en présence un acheteur et un vendeur.
C93: coutume | D93: Loi non écrite
C94: créance | D94: Droit que l'on a de demander à quelqu'un le paiement d'une somme due.
C95: créancier | D95: Personne à qui l'on doit une somme d'argent.
C96: crédit | D96: 1) Confiance qu'inspire quelqu'un. Degré de solvabilité
C97: crédit | D97: 2) Opération par laquelle une personne met une somme d'argent à disposition d'une autre.
C98: crédit | D98: 3) Partie droite d'un compte
C99: cuniculiculture | D99: Elevage des lapins
C100: cybernétique | D100: Science qui étudie les mécanismes de communication dans les machines
A102: D | C102: débit | D102: 1) Quantité de fluide fournie. (pour une fontaine par ex.)
C103: débit | D103: 2) Vente au détail
C104: débit | D104: 3) Partie gauche d'un compte
C105: débiteur | D105: Celui ou celle qui doit une somme d'argent à un tiers.
C106: découler | D106: Qui suit logiquement
C107: découvert | D107: Situation financière d'une entreprise caractérisée par des dettes supérieures aux biens et aux créances.
C108: déférer | D108: Porter une affaire ou traduire un accusé devant un tribunal.
C109: délit | D109: Acte illicite, infraction à la loi.
C110: demande | D110: Prix auquel la banque achète des monnaies étrangères. Cours ...
C111: demeure | D111: Terme juridique indiquant un retard.
C112: déroger | D112: Manquer à l'observation d'une loi.
C113: dette | D113: Somme que l'on doit à quelqu'un.
C114: devise | D114: Créances sur l'étranger libellées en monnaie étrangère
C115: différend | D115: Désaccord résultant d'une différence d'opinion.
C116: différer | D116: Reporter à plus tard.
C117: diligence | D117: Soin, zèle, faire ....
C118: disponibilité | D118: Fonds dont on peut user à tout moment.
C119: dividende | D119: Part du bénéfice d'une société anonyme (SA) qui est versée pour chaque action.
C120: domanial | D120: Qui est du domaine de l'Etat, du seigneur. (adj.)
C121: domiciliation | D121: Indication d'un lieu de paiement, autre que le domicile du tiré, sur un effet de change
C122: droit d'auteur | D122: Pourcentage reçu par l'auteur sur la production en série d'une de ses oeuvres
A124: E | C124: échéance | D124: Date à laquelle une dette doit être payée.
C125: échoir | D125: Etre payable à une époque déterminée (dette échue).
C126: Ecu | D126: Nom (abrégé) de l'unité monétaire européenne.
C127: effet de levier | D127: Le cours des options varie proportionnellement beaucoup plus que le cours du sous-jacent auquel l'option est liée.
D128: Action de quitter son pays pour s'établir dans un autre.
C129: émolument | D129: Rétribution tarifée alloué à une administration ou à un notaire.
C130: enchère | D130: Offre supérieure au prix proposé au cours d'une adjudication.
C131: endémie | D131: Maladie qui sévit continuellement dans un pays
C132: escompte | D132: déduction d'un intérêt lors de l'exécution d'un engagement avant l'échéance.
C133: escompter | D133: Action de remettre à la banque un effet avant l'échéance.
C134: espèces | D134: Nom féminin pluriel désignant l'ensemble des billets de banque et des pièces de monnaie.
C135: ester | D135: Poursuivre une action en justice, comme demandeur ou comme défendeur.
C136: excédent | D136: Surplus
C137: exhaustif | D137: Complet
C138: exploitation | D138: Action de mettre en valeur
A140: F | C140: f.o.b. | D140: Transbordement compris dans le prix d'achat.
C141: faillite | D141: Procédure judiciaire entraînant la liquidation d'une société qui ne peut plus honorer ses paiements.
C142: fallacieux | D142: Qui trompe
C143: fiduciaire | D143: Adjectif qui qualifie la monnaie basée sur la confiance, comme les pièces ou les billets de banque.
C144: filiale | D144: Succursale
C145: fixing | D145: Cours moyen d'un titre fixé entre le prix d'achat et le prix de vente
C146: florin | D146: Nom de la monnaie hollandaise
C147: fonds | D147: Sol d'un champ, d'un domaine, terrain (n.m. singulier)
C148: fonds | D148: Somme d'argent à disposition pour acquérir des biens (n. m. pluriel)
C149: fonds propres | D149: Apport du propriétaire
C150: fongible | D150: Qui se consomme par l'usage et qui peut être remplacé par une chose analogue.
C151: for | D151: Lieu où une action judiciaire doit être intentée
C152: fournisseur | D152: Personne qui nous vend des marchandises à crédit
C153: franco | D153: Le fournisseur supporte les frais de transport jusqu'au point indiqué (domicile, douane, etc).
C154: fret | D154: Frais de transport par navire ou par avion
C155: future | D155: Contrat standardisé par lequel une des parties s'engage à acheter (ou vendre) des titres à une prix donné et à une date fixée d'avance. Achat ou vente à terme.
A157: G | C157: gage | D157: Bien mobilier remis par un débiteur à son créancier en garantie du paiement d'une dette.
C158: giro | D158: Système de virement entre banques permettant le règlement de sommes sans utilisation d'espèces.
C159: goodwill | D159: Mot anglais désignant la valeur immatérielle de la clientèle et du fonds de commerce.
C160: grand magasin | D160: Etablissement non alimentaire, non spécialisé proposant une grande variété de produits, sur un surface de plus de 2500 m2
C161: grever | D161: Frapper de charges financières, de servitudes, etc...
A163: H | C163: haussier | D163: Personne qui, en Bourse, joue à la hausse.
C164: hebdomadaire | D164: Publication qui paraît chaque semaine
C165: honoraire | D165: Rétribution accordée à des personnes exerçant une profession libérale.
C166: house organ | D166: Journal édité par une entreprise et destiné à ses collaborateurs ou à ses partenaires commerciaux
C167: hypermarché | D167: libre-service réalisant plus de 1/3 de son chiffre d'affaires en alimentation, sur une surface de plus de 2500 m2
C168: hypothèque | D168: Droit de gage inscrit au R.F., sur un bien immobilier en garantie d'un prêt.
A170: I | C170: illicite | D170: Contraire à la loi
C171: immigration | D171: Action de venir d'établir dans un pays étranger.
C172: immobilisation | D172: Capitaux engagés durablement dans l'entreprise et utilisables de nombreuses fois. (Machines, véhicules, immeubles,etc)
C173: impôt anticipé | D173: Impôt prélevé immédiatement sur des revenus provenant d'un capital et remboursé au contribuable lorsque ces revenus sont
C174: imputer | D174: Mettre sur le compte de quelqu'un. Inscrire un montant dans un compte
C175: inaltérable | D175: Dont l'état général ou les propriétés ne se modifient pas avec le temps.
C176: incertain | D176: Manière de coter où l'on indique en FS le prix de 100 unités étrangères
C177: indice | D177: Valeur moyenne des prix d'une série de produits ou d'un panier de titres.
C178: inflation | D178: Hausse du niveau général des prix
C179: infrastructure | D179: Ensemble des constructions de base (routes, ponts, etc...)
C180: initié | D180: Personne profitant d'informations confidentielles pour spéculer en Bourse.
C181: inhérent | D181: Attaché à, inséparable.
C182: insolvable | D182: Qui n'a pas de quoi payer
C183: intenter | D183: Entreprendre contre quelqu'un une action en justice.
C184: intérêt | D184: Revenu du capital - Loyer perçu pour une somme placée.
C185: intrinsèque | D185: Qui qualifie la valeur d'une chose pour elle-même, en dehors de toute convention
C186: inventaire | D186: Recensement de tous les biens d'une entreprise, compte par compte.
C187: investir | D187: Consacrer de l'argent à étendre, remplacer, moderniser les moyens de production. Placer une somme d'argent à long terme.
C188: ipso facto | D188: D'office, automatiquement
A190: J | C190: jachère | D190: Terre labourée, mais non ensemencée, pour la laisser reposer temporairement
C191: jingle | D191: Publicité mélodique ou chantée
C192: journal | D192: Liste chronologique des opérations comptables
C193: jurisprudence | D193: Interprétation de la loi donnée par les tribunaux lors de procès et restant valable pour tous les jugements à venir.
A195: L | C195: latent | D195: qui demeure caché et qui ne c'est pas encore déclaré
C196: leasing | D196: Forme d'acquisition de biens entre la vente et la location.
C197: léser | D197: Blesser quelqu'un dans ses intérêts, ses droits; lui causer du tort.
C198: libellé | D198: Courte description d'un fait comptable.
C199: libérale | D199: Adjectif qui qualifie une profession qui n'appartient ni à l'industrie, ni au commerce, ni à la fonction publique.
C200: Libor | D200: (London Interbank Offered Rate). Taux appliqué aux prêts interbancaires à court terme
C201: lingot | D201: Barre de métal fondu et non ouvragé.
C202: liquidation | D202: Fin du mois boursier. C'est avant la date de liquidation (5ème jour ouvré avant la fin du mois civil) que l'acheteur doit décider du report, du débouclage ou de la livraison de ses titres.
C203: liquidité | D203: Montant des moyens de paiement dont l'entreprise peut disposer immédiatement.
C204: litige | D204: Conflit, contestation donnant matière à procès.
C205: litispendance | D205: Situation lorsque deux demandes portant sur le même objet sont présentées devant une juridiction.
C206: logistique | D206: Département qui s'occupe de la distribution des biens
C207: logo | D207: Nom, initiales ou image qui représente symboliquement une marque ou une entreprise
C208: loi | D208: Ensemble des règles imposées au citoyen.
C209: lucratif | D209: Qui procure un gain, des profits, des bénéfices.
C210: lucre | D210: Amour du gain, du profit.
A212: M | C212: magistrat | D212: Fonctionnaire investi d'une autorité juridique ou politique
C213: main d'oeuvre | D213: Charge salariale de production
... 146 more rows
